Workbook

Sheet Caratula
B5: E S T A D O S C O N T A B L E S
B10: DENOMINACION: NICOLAS GONZALEZ ODDONE S.A.E.C.A.
B13: DOMICÍLIO LEGAL: DOMINICANA ESQUINA VIA FERREA
B16: ACTIVIDAD PRINCIPAL: IMPORTACIONES
B19: INSCRIPCION EN EL REGISTRO PUBLICO DE COMERCIO Nº 106 DEL 03/06/64 Y Nº 186 DEL 11/04/96 DE LOS ESTATUTOS SOCIALES Y SUS MODIFICACIONES. -
B22: INSCRIPCION EN LA COMISION NACIONAL DE VALORES: N.º 058 RESOL. Nº 270/96
B25: FECHA DE VENCIMIENTO DEL ESTATUTO SOCIAL: AÑO 2094

Sheet Indice
C1: NICOLAS GONZALEZ ODDONE S.A.E.C.A
B3: ESTADOS CONTABLES AL 31/03/2020 | C3: ESTADOS CONTABLES AL 30/09/2021
C6: INDICE | D6: REF.
B7: Informacion General
C8: Descripción de la naturaleza y del negocio de la Sociedad | D8: Nota 1
C9: Resumen de las principales políticas contables | D9: Nota 2
B10: Balance General | D10: BG
C11: Efectivo y equivalente de efectivo | D11: Nota 3
C12: Inversiones temporales | D12: Nota 4
C13: Cuentas por cobrar comerciales | D13: Nota 5
C14: Otros créditos | D14: Nota 6
C15: Inventarios | D15: Nota 7
C16: Inversión en asociadas | D16: Nota 8
C17: Propiedades, planta y equipo | D17: Nota 9
C18: Activos disponibles para la venta | D18: Nota 10
C19: Activos intangibles | D19: Nota 11
C20: Goodwill | D20: Nota 12
C21: Otros Activos | D21: Nota 41
C22: Cuentas por pagar proveedores | D22: Nota 13
C23: Préstamos a corto plazo | D23: Nota 14
C24: Porción corriente de la deuda a largo plazo | D24: Nota 15
C25: Remuneraciones y cargas sociales a pagar | D25: Nota 16
C26: Impuestos a pagar | D26: Nota 17
C27: Provisiones | D27: Nota 18
C28: Otros pasivos corrientes | D28: Nota 19
C29: Capital integrado | D29: Nota 20
C30: Reserva de revalúo | D30: Nota 21
C31: Reserva legal | D31: Nota 21
C32: Reservas estatutarias | D32: Nota 21
C33: Reservas facultativas | D33: Nota 21
C34: Diferencia transitoria por conversión | D34: Nota 22
C35: Resultados acumulados | D35: Nota 23
C36: Interés minoritario | D36: Nota 24
B37: Estado de Resultados | D37: ER
C38: Ventas | D38: Nota 25
C39: Costo de ventas | D39: Nota 26
C40: Gastos de ventas | D40: Nota 27
C41: Gastos administrativos | D41: Nota 27
C42: Otros ingresos y gastos operativos/ No Operativos | D42: Nota 28
C43: Ingresos financieros - neto/ Inversiones | D43: Nota 29
C44: Gastos financieros - neto | D44: Nota 29
C45: Resultado de inversiones en asociadas | D45: Nota 30
C46: Resultado participación minoritaria | D46: Nota 31
C47: Impuesto a la renta | D47: Nota 32
C48: Resultado extraordinario neto de impuesto a la renta | D48: Nota 33
C49: Resultado sobre actividades discontinuadas neto de impuesto a la renta | D49: Nota 34
C50: Utilidad/(Pérdida) neta del año | D50: Nota 35
C51: Utilidad neta por acción ordinaria | D51: Nota 35
B52: Estado de Evolución del Patrimonio Neto | D52: EVPN
B53: Estado de Flujos de Efectivo | D53: EFE
B54: Otras Notas de los Estados Financieros
C55: Activos gravados | D55: Nota 36
C56: Contingencias y compromisos | D56: Nota 37
C57: Impuesto diferido | D57: Nota 38
C58: Hechos posteriores | D58: Nota 39
C59: Saldos y transacciones con partes relacionadas | D59: Nota 40

Sheet BG
C1: =Indice!C1 -> NICOLAS GONZALEZ ODDONE S.A.E.C.A | D1: Indice
C3: BALANCE GENERAL AL 30 DE SEPTIEMBRE DE 2021 COMPARATIVO CON CIFRAS AL 31 DE DICIEMBRE DE 2020
D5: Nota | E5: 2021-09-30 | F5: 2020-12-31
C6: En miles de guaraníes
A8: ACTIVOS
A9: Activos Corrientes
B10: Efectivo y equivalente de efectivo | D10: 3 | E10: ='Nota 3'!C20 -> 120353754427 | F10: ='Nota 3'!D20 -> 64916787921
B11: Inversiones Temporales | D11: 4 | E11: ='Nota 4'!B20 -> 89352189048 | F11: ='Nota 4'!C20 -> 172377481600
B12: Cuentas por Cobrar Comerciales | D12: 5 | E12: ='Nota 5'!C19 -> 254177362752 | F12: ='Nota 5'!D19 -> 284449211487
B13: Otros Créditos | D13: 6 | E13: ='Nota 6'!B54 -> 13344088651 | F13: ='Nota 6'!C54 -> 11394632809
B14: Inventarios | C14: Inventarios | D14: 7 | E14: ='Nota 7'!B27 -> 474071062741 | F14: =+'Nota 7'!C27 -> 364536038453
B15: Otros Activos Corrientes | D15: 6 | E15: ='Nota 6'!B88 -> 363372588 | F15: ='Nota 6'!C88 -> 0
B16: TOTAL ACTIVO CORRIENTES | E16: =SUM(E10:E15) -> 951661830207 | F16: =SUM(F10:F15) -> 897674152270
A18: Activos no corrientes
B19: Otros créditos | D19: 6 | E19: 0 | F19: 0
C20: Cuentas por Cobrar Comerciales | D20: 5 | E20: ='Nota 5'!C49 -> 23528027566 | F20: ='Nota 5'!D49 -> 752588703
B21: Inversiones en Asociadas | D21: 8 | E21: ='Nota 8'!B10 -> 47024924776 | F21: ='Nota 8'!C10 -> 44713924776
B22: Propiedad, planta y equipo | D22: 9 | E22: ='Nota 9'!L50 -> 344901934211 | F22: ='Nota 9'!M50 -> 349540560532
B23: Inventarios | D23: 7 | E23: ='Nota 7'!B36 -> 2677490769 | F23: ='Nota 7'!C35 -> 1727462596
B24: Inversiones Financieras | D24: 6 | E24: ='Nota 6'!F22 -> 2176797420 | F24: ='Nota 6'!G22 -> 4849836142
B25: Activos Intangibles | D25: 11 | E25: ='Nota 11'!B31 -> 5762024436 | F25: ='Nota 11'!C31 -> 5453082128
B26: Goodwill | D26: 12 | E26: ='[1]Nota 12'!B11 -> 0 | F26: ='[1]Nota 12'!C11 -> 0
B27: Inversiones Inmobiliarias | C27: Activos Disponibles para la Venta | D27: 10 | E27: ='Nota 10'!B69 -> 4.76691195e+10 | F27: ='Nota 10'!C69 -> 4.543674504e+10
B28: Total activos no corrientes | E28: =SUM(E19:E27) -> 4.737403187e+11 | F28: =SUM(F19:F27) -> 4.524741999e+11
A30: TOTAL ACTIVOS | E30: =+E16+E28 -> 1.425402149e+12 | F30: =+F16+F28 -> 1.350148352e+12
A31: PASIVOS Y PATRIMONIO NETO
A33: Pasivo Corrientes | E33: -1
B34: Cuentas a Pagar - Comerciales | D34: 13 | E34: ='Nota 13'!B40 -> 23380738267 | F34: =+'Nota 13'!C40 -> 30125022040
B35: Prestamos a corto plazo | D35: 14 | E35: ='Nota 14'!E27 -> 269964465086 | F35: ='Nota 14'!K27 -> 223685364647
B36: Remuneraciones y cargas sociales a pagar | D36: 16 | E36: ='Nota 16'!B21 -> 1620982357 | F36: ='Nota 16'!C21 -> 2839970060
B37: Impuestos a Pagar | D37: 17 | E37: ='Nota 17'!B15 -> 2255410058 | F37: ='Nota 17'!C15 -> 3302748105
B38: Provisiones | D38: 18 | E38: ='Nota 18'!B36+'Nota 18'!B50 -> 22925379652 | F38: ='Nota 18'!C51 -> 26942603877
B39: Otros pasivos corrientes | D39: 19 | E39: ='Nota 19'!B26 -> 3122569262 | F39: =+'Nota 19'!C26 -> 3291887592
B40: Total Pasivos Corrientes | E40: =SUM(E34:E39) -> 323269544682 | F40: =SUM(F34:F39)-1 -> 290187596320
A42: Pasivos no corrientes
B43: Préstamos a largo plazo | E43: 0 | F43: 0
B44: Otros pasivos no corrientes | D44: 19 | E44: ='Nota 19'!B32 -> 2184057621 | F44: ='Nota 19'!C33 -> 4885020675
B45: Total pasivos no corrientes | E45: =E44 -> 2184057621 | F45: =SUM(F43:F44) -> 4885020675
A47: TOTAL PASIVOS | E47: =+E40+E45 -> 325453602303 | F47: =+F40+F45 -> 295072616995
A48: PATRIMONIO NETO
B49: Capital integrado | D49: 20 | E49: ='Nota 20'!B15 -> 643227002000 | F49: ='[1]Nota 20'!C6 -> 643227002000
B50: Reserva de revalúo | D50: 21 | E50: =' Nota 21'!B9 -> 178972541980 | F50: ='[1] Nota 21'!C9 -> 178972541980
B51: Reserva legal | D51: 21 | E51: =' Nota 21'!B15 -> 55328905234 | F51: =' Nota 21'!C15 -> 50198695192
B52: Reservas de Capitalización | D52: 21 | E52: =+' Nota 21'!B30+' Nota 21'!B37 -> 148305088750 | F52: =+' Nota 21'!C30+' Nota 21'!C37 -> 80073295209
B53: Reservas facultatitvas | D53: 21 | E53: 0 | F53: 0
B54: Diferencia transitoria por conversión | D54: 22 | E54: 0 | F54: 0
B55: Resultados acumulados | D55: 23 | E55: =+'Nota 23'!B6 -> 0 | F55: =+'Nota 23'!C6 -> 0
B56: Resultados del ejercicio | D56: 23 | E56: =+'Nota 23'!B13 -> 74115008613 | F56: =+'Nota 23'!C13 -> 102604200814
B57: Subtotal | E57: =SUM(E49:E56) -> 1099948546577 | F57: =SUM(F49:F56) -> 1055075735195
B58: Interés minoritario | D58: 24 | E58: 0 | F58: ='[1]Nota 24'!C7 -> 0
A59: TOTAL PATRIMONIO NETO | E59: =E57 -> 1099948546577 | F59: =F57+1 -> 1055075735196
A60: TOTAL PASIVO Y PATRIMONIO NETO | E60: =+E47+E59 -> 1425402148880 | F60: =F47+F59 -> 1350148352191
A62: Las notas que se acompañan forman parte integrante de estos estados.

Sheet EVPN
A1: =Indice!C1 -> NICOLAS GONZALEZ ODDONE S.A.E.C.A | I1: Indice
G4: ESTADO DE EVOLUCIÓN DEL PATRIMONIO NETO
G5: AL 30 DE SEPTIEMBRE DE 2021
A6: Comparativo con igual periodo del año anterior
A7: (En miles de guaraníes)
C10: Aporte de los propietarios | O10: Ganancias reservadas
C11: Capital suscripto e integrado | E11: Acciones en Tesoreria | G11: Primas de emisión | I11: Reserva de revalúo | K11: Reserva de revalúo técnico | M11: Prima de Recompra | O11: Reserva legal | Q11: Reserva P/ Capitalizacion | T11: Resultados acumulados | V11: Resultado del Ejercicio | W11: Interes Minoritario | Y11: Total
M12: de Acciones | T12: Total | V12: Total
A14: Saldo al 31 de Diciembre 2019 | C14: 635041900000 | E14: -144200000 | G14: 8329302000 | I14: 91567541041 | K14: 87405000939 | M14: -47385000 | O14: 46478390374 | Q14: 34528344662 | T14: 0 | V14: 74406096363 | W14: 0 | Y14: =+C14+E14+G14+I14+K14+O14+Q14+T14+W14+V14+M14 -> 977564990379
A15: Cambio en política contable
A16: Saldo reestructurado | C16: =+C14 -> 635041900000 | E16: =+E14 -> -144200000 | G16: =+G14 -> 8329302000 | I16: =+I14 -> 91567541041 | K16: =+K14 -> 87405000939 | M16: =+M14 -> -47385000 | O16: =+O14 -> 46478390374 | Q16: =+Q14 -> 34528344662 | T16: =+T14 -> 0 | V16: =+V14 -> 74406096363 | W16: =+W14 -> 0 | Y16: =+C16+E16+G16+I16+K16+O16+Q16+T16+W16+V16+M16 -> 977564990379
A17: Distribución de dividendos s/Acta de Asamblea General Ordinaria N°92 de fecha 30/06/2020 | C17: 0 | E17: 0 | G17: 0 | I17: 0 | K17: 0 | M17: 0 | O17: 3720304818 | P17: 0 | Q17: 45592335547 | T17: =-O17-Q17 -> -49312640365 | V17: 0 | Y17: =SUM(C17:V17) -> 0
A18: Dividendos pagados | C18: 0 | E18: 0 | G18: 0 | I18: 0 | K18: 0 | M18: 0 | O18: 0 | Q18: 0 | T18: -25093455998 | V18: 0 | Y18: =SUM(C18:V18) -> -25093455998
A19: Transferencia a Resultados Acumulados | C19: 0 | E19: 0 | G19: 0 | I19: 0 | K19: 0 | M19: 0 | O19: 0 | Q19: 0 | T19: 74406096363 | V19: =-T19 -> -74406096363 | Y19: =SUM(C19:V19) -> 0
A20: Integración del capital social | C20: 0 | E20: 0 | G20: 0 | I20: 0 | K20: 0 | M20: 0 | O20: 0 | Q20: =-C20 -> 0 | T20: 0 | V20: 0 | Y20: 0
A21: Reducción del capital social s/Acta de Asamblea General Ordinaria N°… de fecha…….. | C21: 0 | E21: 0 | G21: 0 | I21: 0 | K21: 0 | M21: 0 | O21: 0 | P21: 0 | Q21: 0 | T21: 0 | V21: 0 | Y21: 0
A22: Revalúo de activos fijos | C22: 0 | E22: 0 | G22: 0 | I22: 0 | K22: 0 | M22: 0 | O22: 0 | Q22: 0 | T22: 0 | V22: 0 | Y22: 0
A23: Reserva Revaluo/Lega - CPH/TF | I23: 0 | O23: 0
A24: Revalúo técnico | C24: 0 | E24: 0 | G24: 0 | I24: 0 | K24: 0 | M24: 0 | O24: 0 | Q24: 0 | T24: 0 | V24: 0 | Y24: 0
A25: Resultado del año | C25: 0 | E25: 0 | G25: 0 | I25: 0 | K25: 0 | M25: 0 | O25: 0 | Q25: 0 | T25: 0 | V25: 67413551673 | Y25: 67413551673
A27: Saldo al 30/09/2020 | C27: =SUM(C16:C25) -> 635041900000 | E27: =SUM(E16:E25) -> -144200000 | G27: =SUM(G16:G25) -> 8329302000 | H27: =SUM(H14:H26) -> 0 | I27: =SUM(I16:I25) -> 91567541041 | K27: =SUM(K16:K25) -> 87405000939 | M27: =SUM(M16:M25) -> -47385000 | O27: =SUM(O16:O25) -> 50198695192 | Q27: =SUM(Q16:Q25) -> 80120680209 | T27: =SUM(T16:T25) -> 0 | V27: =SUM(V16:V25) -> 67413551673 | W27: =W16+W17+W20+W21+W22+W24+W25 -> 0 | Y27: =SUM(Y16:Y25) -> 1019885086054
A29: Saldo al 31 de Diciembre de 2020 | C29: 635041900000 | E29: -144200000 | G29: 8329302000 | H29: =SUM(H16:H28) -> 0 | I29: 91567541041 | K29: 87405000939 | M29: =+M27 -> -47385000 | O29: 50198695192 | Q29: 80120680209 | T29: 0 | V29: 102604200814 | W29: =W19+W20+W22+W24+W25+W26+W27 -> 0 | Y29: =+C29+E29+G29+I29+K29+O29+Q29+T29+W29+V29+M29 -> 1055075735195
A30: Transferencia a Resultados Acumulados | C30: 0 | E30: 0 | G30: 0 | I30: 0 | K30: 0 | M30: 0 | O30: 0 | Q30: 0 | T30: 102604200814 | V30: =-T30 -> -102604200814 | Y30: =+T30+V30 -> 0
A31: Distribución de dividendos s/Acta de Asamblea General Ordinaria N° 93 de fecha 16/04/2021 | C31: 0 | E31: 0 | G31: 0 | I31: 0 | K31: 0 | M31: 0 | O31: 5130210041 | Q31: 68231793541 | T31: =-O31-Q31 -> -73362003582 | V31: 0 | Y31: 0
A32: Dividendos pagados | C32: 0 | E32: 0 | G32: 0 | I32: 0 | K32: 0 | M32: 0 | O32: 0 | Q32: 0 | T32: -29242197232 | V32: 0 | Y32: =+T32 -> -29242197232
A33: Revalúo de activos fijos | C33: 0 | E33: 0 | G33: 0 | I33: 0 | K33: 0 | M33: 0 | O33: 0 | Q33: 0 | T33: 0 | V33: 0 | Y33: =+T33 -> 0
A34: Desafectación de la reserva de revalúo técnico | C34: 0 | E34: 0 | G34: 0 | I34: 0 | K34: 0 | M34: 0 | O34: 0 | Q34: 0 | T34: 0 | V34: 0 | Y34: 0
A36: Resultado del año | C36: 0 | D36: 0 | E36: 0 | G36: 0 | I36: 0 | K36: 0 | M36: 0 | O36: 0 | Q36: 0 | T36: 0 | V36: 74115008613 | Y36: =+V36 -> 74115008613
A38: Saldo al 30/09/2021 | C38: =C29+C31+C33+C34+C36 -> 635041900000 | D38: =SUM(D27:D36) -> 0 | E38: =E29+E31+E33+E34+E36 -> -144200000 | G38: =G29+G31+G33+G34+G36 -> 8329302000 | I38: =I29+I31+I33+I34+I36 -> 91567541041 | K38: =K29+K31+K33+K34+K36 -> 87405000939 | M38: =M29+M31+M33+M34+M36 -> -47385000 | O38: =O29+O31+O33+O34+O36 -> 55328905233 | Q38: =Q29+Q31+Q33+Q34+Q36 -> 148352473750 | T38: =SUM(T29:T34) -> 0 | V38: =SUM(V29:V36) -> 74115008613 | W38: =W27+W31+W33+W34+W36 -> 0 | Y38: =SUM(Y29:Y37) -> 1099948546576
A40: Las notas que se acompañan forman parte integrante de estos estados.

Sheet ER
A1: =Indice!C1 -> NICOLAS GONZALEZ ODDONE S.A.E.C.A | B1: Indice
A3: ESTADO DE RESULTADOS
A4: AL 30 DE SEPTIEMBRE DE 2021 COMPARATIVO CON CIFRAS AL 30 DE SEPTIEMBRE DE 2020
A5: (En miles de guaraníes)
B7: Nota | C7: 2021-09-30 | D7: 2020-09-30
A8: Ventas Actividad Comercial | B8: 25 | C8: ='Nota 25'!B13 -> 527426518403 | D8: ='Nota 25'!C13 -> 444197202858
A9: Ventas Actividad Ganadera | B9: 25 | C9: ='Nota 25'!B20 -> 17209062176 | D9: ='Nota 25'!C20 -> 3108940205
A10: Costo de ventas | B10: 26 | C10: =-'Nota 26'!B18 -> -399906650081 | D10: =-'Nota 26'!C18 -> -316630983086
A11: Utilidad bruta | C11: =SUM(C8:C10) -> 144728930498 | D11: =SUM(D8:D10) -> 130675159977
A13: Gastos de ventas | B13: 27 | C13: =-'Nota 27'!B34 -> -60084028855 | D13: =-'Nota 27'!E34 -> -50636005435
A14: Gastos administrativos | B14: 27 | C14: =+-'Nota 27'!C34 -> -24822164186 | D14: =-'Nota 27'!F34 -> -26204255261
A15: Otros ingresos operativos | B15: 28 | C15: ='Nota 28'!B46 -> 25937323162 | D15: ='Nota 28'!C46 -> 14351590896
A16: Otros gastos operativos | B16: 28 | C16: ='Nota 28'!F19 -> -9454058649 | D16: ='Nota 28'!G19 -> -6844037835
A17: Resultado operativo | C17: =SUM(C13:C16) -> -68422928528 | D17: =SUM(D13:D16) -> -69332707635
A19: Ingresos financieros - neto | B19: 29 | C19: ='Nota 29'!B15 -> 46566407515 | D19: ='Nota 29'!C15 -> 24955270346
A20: Gastos financieros - neto | B20: 29 | C20: ='Nota 29'!F14 -> -41563291195 | D20: ='Nota 29'!G14 -> -12745833019
A21: Subtotal | C21: =SUM(C19:C20) -> 5003116320 | D21: =SUM(D19:D20) -> 12209437327
A23: Resultado de inversiones en asociadas | B23: 30 | C23: =+'Nota 30'!B10 -> 0 | D23: =+'Nota 30'!C10 -> 0
A24: Resultados no Operativos | B24: 28.1 | C24: =+'Nota 28'!B78 -> 1573927257 | D24: ='Nota 28'!C78 -> 452644312
A25: Ingresos de Inversiones Financieras | B25: 29.1 | C25: =+'Nota 29'!B31 -> 12441191461 | D25: =+'Nota 29'!C31 -> 1863181585
A26: Egresos de Inversiones Financieras | B26: 29.1 | C26: ='Nota 29'!F31 -> -13392454084 | D26: ='Nota 29'!G31 -> -189203339
A28: Resultados ordinarios antes de impuesto a la renta | C28: =+C11+C17+C21+C24+C25+C26+C23 -> 81931782924 | D28: =+D11+D17+D21+D24+D25+D26+D23 -> 75678512227
A30: Resultado ordinario antes del impuesto a la renta
A31: Impuesto a la renta | B31: 32 | C31: =-'Nota 32'!B9 -> -7816774311 | D31: =-'Nota 32'!C9 -> -8264960554
A33: Resultado neto de actividades ordinarias | C33: =+C28+C31 -> 74115008613 | D33: =+D28+D31 -> 67413551673
A34: Resultado extraordinario neto de impuesto a la renta | B34: 33 | C34: 0 | D34: 0
A35: Resultado sobre actividades discontinuadas neto de impuesto a la renta | B35: 34 | C35: ='Nota 34'!B10 -> 0 | D35: ='Nota 34'!C10 -> 0
D36: 0
A37: Utilidad/(Pérdida) neta del año | C37: =C33+C34+C35 -> 74115008613 | D37: =D33+D34+D35 -> 67413551673
A38: Utilidad neta por acción ordinaria | B38: 35 | C38: =C37/'Nota 35'!B9 -> 11673.53737 | D38: =D37/'Nota 35'!C9 -> 10618.01961
A41: Las notas que se acompañan forman parte integrante de estos estados.

Sheet EFE
A1: =Indice!C1 -> NICOLAS GONZALEZ ODDONE S.A.E.C.A
A5: ESTADO DE FLUJOS DE EFECTIVO
A6: Por los periodos comprendidos entre el 01 de enero al 30 de Setiembre de 2021
A7: Comparativo con igual periodo del año anterior
B10: 2021-09-30 | C10: 2020-09-30
A11: En miles de guaraníes
A13: FLUJO DE EFECTIVO DE ACTIVIDADES OPERATIVAS
A14: Cobranzas efectuadas a clientes | B14: 567915299723 | C14: 418292915379
A15: Pagos efectuados a proveedores y empleados | B15: -490456673941 | C15: -257971154585
A16: Efectivo generado por las operaciones | B16: -35827839413 | C16: -23198896932
A17: Intereses pagados | B17: 0 | C17: 0
A18: Otros ingresos y (egresos) - neto | B18: -10502312611 | C18: -9798323094
A19: Pagos de impuesto a la renta | B19: -11867544497 | C19: -6330933473
A20: Flujo neto de efectivo de actividades operativas | B20: =SUM(B14:B19) -> 19260929261 | C20: =SUM(C14:C19) -> 120993607295
A22: FLUJO DE EFECTIVO DE ACTIVIDADES DE INVERSIÓN
A23: Adquisicion de bienes de uso | B23: -5930508595 | C23: -24745926511
A24: Venta de bienes de uso | B24: 1145719203 | C24: 0
A25: Intereses cobrados sobre inversiones | B25: 3649714200 | C25: 1343301480
A26: Inversiones mobiliarias Permanentes | B26: -2311000000 | C26: 0
A27: Aquisición de inversiones | B27: 83025292552 | C27: -126284069590
A28: Inversiones mobiliarias Permanentes | B28: 0 | C28: 0
A30: Flujo neto de efectivo de actividades de inversión | B30: =SUM(B23:B29) -> 79579217360 | C30: =SUM(C23:C29) -> -149686694621
A33: FLUJO DE EFECTIVO DE ACTIVIDADES DE FINANCIACIÓN
A34: (Disminución) Incremento de préstamos | B34: -10547535620 | C34: 25540306849
A35: Aportes de capital recibidos | B35: 0 | C35: 0
A36: Dividendos pagados | B36: -28223329637 | C36: -25093455998
A37: Intereses Pagados sobre préstamos | B37: -2411375340 | C37: -1265515657
A38: Flujo neto de efectivo de actividades de financiamiento | B38: =SUM(B34:B37) -> -41182240597 | C38: =SUM(C34:C37) -> -818664806
A40: Disminución o incremento neto de efectivo | B40: =+B38+B30+B20 -> 57657906024 | C40: =+C20+C30+C38 -> -29511752132
A41: Efecto estimado de la diferencia de cambio sobre el saldo de efectivo | B41: -2220939519 | C41: 9741090595
A42: Efectivo al principio del año | B42: 64916787922 | C42: 97761526232
A43: Efectivo al final del periodo | B43: =SUM(B40:B42) -> 120353754427 | C43: =SUM(C40:C42) -> 77990864695
A45: Las notas que se acompañan forman parte integrante de estos estados.

Sheet Nota1
B1: NOTAS A LOS ESTADOS FINANCIEROS POR EL PERIODO FINALIZADO EL 30 DE SEPTIEMBRE DE 2021
B2: Balance General: Correspondiente al periódo finalizado el 30 de Septiembre de 2021, presentado en forma comparativa con el ejercicio finalizado el 31 de diciembre de 2020
B3: Estado de Resultados: Correspondiente al periódo finalizado el 30 de septiembre de 2021, presentado en forma comparativa con el periódo finalizado el 30 de septiembre de 2020.
B6: NOTA 1 – DESCRIPCIÓN DE LA NATURALEZA Y DEL NEGOCIO DE LA COMPAÑÍA
B8: Denominación: NICOLAS GONZALEZ ODDONE S.A.E.C.A
B10: La sociedad fue constituida por escritura de fecha 25 de marzo de 1964, autorizada por el Escribano Público Gervasio Recalde, habiéndose aprobado los mencionados estatutos y reconocida la personería jurídica de la sociedad por decretodel poder ejecutivo de la nacion Nº 4.180 de fecha 16 de abril de 1964, e inscriptos en el registro público de comercio por mandato del señor Juez de primera instancia en lo comercial del segundoturno, Dr. Arnaldo Rojas Rojas Sánchez, bajo el Nº 106 y en la página26 y sgtes., según providencia de fecha 03 de junio del mismo año.
B11: Los Estatutos originales sufrieron las siguientes modificaciones:
B12: 1º) Por Escritura N°º 77 de fecha 5 de abril de 1976, aprobadas las modificaciones y aumento de capital social a G. 100.000.000 (guaranies cien millones) por Decreto N° 23039 del 31 de mayo de 1976, e inscriptas en el registro publico de comercio, bajo el N°. 442 y en la pagina 202 en fecha 22 de junio del mismo año;
B13: 2°) Por Escritura del 7 de mayo de 1979, aprobadas las modificaciones y aumento de capital social a G. 300.000.000 (guaranies trescientos millones) por decreto N° 8.425 del 20 de julio de 1979, e inscriptas bajo el N° 999 y en la pagina 145 y sgtes., según providencia del mismo año;
B14: 3°) Por escritura N° 120 del 30 de abril de 1986, aprobadas las modificaciones y aumento de capital social a G 800.000.000 (guaranies ochocientos millones) por decreto N°. 18459 del 17 de noviembre de 1986, inscripta en el registro publico de comercio, bajo el N°. 1106 y en la pagina 32 vlto., en fecha 3 de diciembre del mismo año
B15: 4°) por escritura N°. 219 del 6 de noviembre de 1989, aprobada la modificación por aumento de capital a G 3.000.000.000 (guaranies tres mil millones) y adecuacion al codigo civil, escritura en donde constan los estatutos actualizados de la sociedad, que fueron inscriptos en el registro publico de comercio, bajo el N°. 1423 y al folio 6856 y sgtes., seccion contratos, serie “b”, según providencia del 23 de noviembre de 1989;
B16: 5°) Por escritura N° 84 del 7 de mayo de 1991, con el aumento del capital a G 5.000.000.000 (guaranies cinco mil millones), inscripta en el registro publico de comercio, según providencia del 22 de mayo de 1991, anotado bajo el N°. 110, folio 520 y sgtes., serie “a”, seccion contratos.,
B17: 6°) Por escritura N°. 107 de fecha 28 de diciembre de 1995, pasada ante el escribano Raul A Casabianca, fueron modificados los estatutos sociales para adecuarlos a la ley del mercado de valores y en consecuencia la transformación de la firma en “SOCIEDAD EMISORA DE CAPITAL ABIERTO” y acogerse a los beneficios de la Ley N°. 548/95 y aumento de capital social a la suma de G 30.000.000.000 (treinta mil millones de guaranies); tomándose razon en la dirección general de los registros publicos, registro de personas jurídicas y asociaciones, según A I. N° 309 de fecha 1 de abril de 1996, anotado bajo el n° 197 folio 2558 y sgtes., serie “a” de fecha dos de abril de 1996 y registro publico de comercio, anotado bajo el n° 186, serie “a” folio 2730 y sgtes., seccion contratos, en fecha 11 de abril de 1996 y escritura complementaria N° 109 de fecha 29 de diciembre de 1995, bajo el n° 198 folio 2580 y sgtes., serie “a” de fecha 2 de abril de 1996 y registro publico de comercio anotado bajo el N° 187 serie “a” folio 2751 y sgtes. seccion contratos, en fecha 11 de abril de 1996;
B18: 7°) Escritura N° 21 de fecha 8 de mayo del año 1996, fue protocolizado el Acta N° 49 de fecha 12 de abril del año 1996 de Asamblea General Extraordinaria, aumento de capital a la suma de G 50.000.000.000 (guaranies cincuenta mil millones) inscripto en la Dirección General de los Registros Publicos, Registro de Personas Jurídicas y Asociaciones, según A. I. N° 705 de fecha 4 de julio de 1996, anotado bajo el n° 365 serie “A” al folio 4756 y sgtes. en fecha 5 de julio de 1996 y registro publico de comercio anotado bajo el N° 716 serie “d” al folio 6104 y sgtes. seccion contratos en fecha 9 de julio de 1996;
B19: 8°) Escritura N° 23 de fecha 10 de marzo del año 1999, fue protocolizado el Acta N° 54 de fecha 22 de febrero del año 1999 de Asamblea General Extraordinaria de modificación de los arts.1° y 6° del contrato de constitución social, según providencia de fecha 19 de mayo de 1999, A. I. N° 797, anotado bajo el N° 491 serie “a” al folio 3966 y sgtes. seccion contratos y registro de personas jurídicas y asociaciones bajo el N° 102 serie “C” al folio 1357 y sgtes. en fecha 25 de mayo de 1999.
B20: 9°) Escritura N° 78 de fecha 31 de diciembre de 2001, fue protocolizado el Acta N°. 57 de Asamblea General Extraordinaria de fecha 7 de diciembre de 2001 de emisión de titulos de deudas, emisión de acciones, aumento de capital a la suma de G 70.000.000.000 (guaranies setenta mil millones) y prorroga de duración, inscripto en la dirección general de los registros publicos, registro publico de comercio, A. I. N° 347 providencia de fecha 19 de marzo de 2002, bajo el N° 149 serie “B” folios 1016 y sgtes. en fecha 22 de marzo de 2002 seccion contratos y registro de personas jurídicas y asociaciones bajo el n° 82 serie “G” folios 947 y sgtes en fecha 1 de abril de 2002;
B21: 10°) Escritura N° 5 de fecha 2 de mayo de 2003, fue protocolizado el Acta N°. 61 de fecha 31 de marzo de 2003 de Asamblea General Extraordinaria referente a la emisión de acciones y aumento de capital a la suma de G 100.000.000.000 (guaranies cien mil millones) modificándose los articulos 5º y 33º del contrato social, inscripta en la direccion general de los registros publicos, registro de personas jurídicas y asociaciones, según A. I. N° 1218 de fecha 17 de julio de 2003, bajo el N° 426, folio 5780, serie “F” y en el registro de contratos del registro publico de comercio bajo el N° 587, serie “b”, folios 7162 y sgtes. en fecha 30 de julio de 2003.
B22: 11º) Escritura Nº 17 de fecha 8 de mayo de 2006, fue protocolizado el Acta N°. 66 de fecha 7 de abril de 2006 de Asamblea General Extraordinaria, referante a la emisión de acciones y aumento de capital social a la suma de G 150.000.000.000.-(guaranies ciento cincuenta mil millones) modificándose los articulos 5º y 33º de los estatutos sociales, inscripta en la dirección general de los registros publicos, registro publico de comercio, según A. I. N° 1216 de fecha 10 de julio de 2006, bajo el nº 847 serie e, folios 8330 y sgtes. de la seccion contratos y en la seccion personas jurídicas y asociaciones bajo el nº 547, serie “b”, folios 5844 y sgtes. en fecha 25 de julio de 2006.
B23: 12º) Escritura Nº 8 de fecha 5 de mayo de 2008, fueron protocolizadas las actas, Nº 68 de fecha 14 de abril de 2008 de Asamblea Extraordinaria, referente al aumento del capital social a la suma de doscientos mil millones de guaranies ( G. 200.000.000.000 ), por la que se modifican los articulos 5º y 33º de los estatutos sociales y la Nº 69 de Asamblea General Ordinaria, por la que se emiten acciones, inscripta en la direccion general de los registros publicos, registro publico de comercio, dictamen nº 1985, según providencia de fecha 3 de junio de 2008, bajo el nº 194, serie “c”, folio 1818 de la seccion contratos y en la seccion personas juridicas y asociaciones bajo el nº 589 y al folio 6814, el 6 de junio de 2008;
B24: 13º) Escritura Nº 7 de fecha 16 de abril de 2010, fue protocolizada el Acta Nº 72 de fecha 31 de marzo de 2010 de Asamblea General Extraordinaria, referente a la emision de acciones y aumento del capital social a la suma de doscientos cincuenta mil millones de guaranies (G250.000.000.000), modificandose los articulos 5º y 33º del estatuto social, inscripta en la Direccion General de los Registros Publicos, Registro Publico de Comercio, dictamen Nº 1772 de fecha 3 de mayo de 2010, bajo el Nº 192, serie “g”, folio 2021, de la seccion contratos, el 10 de mayo de 2010 y en la seccion personas juridicas y asociaciones bajo el nº 99 y al folio 988, serie “e” , el 10 de mayo de 2010;
B25: 14º) Escritura Nº 12 de fecha 3 de junio de 2013, fue protocolizada el Acta Nº 79 de fecha 24 de mayo de 2013 de Asamblea General Extraordinaria, referente a la emision de acciones y aumento del capital social a la suma de doscientos setenta mil millones de guaranies (G 270.000.000.000.), modificandose los articulos 5º y 33º del estatuto social, inscripta en la direccion general de los registros publicos, registro publico de comercio, bajo el Nº 140, serie “h”, folio 1479 y sgtes., de la seccion contratos, el 18 de junio de 2013 y en la seccion personas juridicas y asociaciones bajo el nº 538 y al folio 6508, serie “d” , el 18 de junio de 2013;
B26: 15º) Escritura Nº 3 de fecha 12 de mayo de 2016, fue protocolizada el Acta Nº 84 de fecha 11 de abril de 2016 de Asamblea General Extraordinaria, referente al aumento del capital social a la suma de trescientos mil millones de guaranies (G 300.000.000.000.), modificandose los articulos 5º y 33º del estatuto social, inscripta en la direccion general de los registros publicos, seccion personas juridicas y asociaciones matricula juridica Nº 5293 y en la seccion comercio matricula comercial Nº 5585 de fecha 7 de julio de 2016.
B27: 16°) Escritura Nº 13 de fecha 22 de octubre de 2018, fue protocolizada el Acta Nº 88 de fecha 05 de octubre de 2018 de Asamblea Extraordinaria, referente al aumento del capital social a la suma de ochocientos mil millones de guaranies (G 800.000.000.000.), modificandose los articulos 5º y 33º del estatuto social, inscripta en la direccion general de los registros publicos, seccion personas juridicas y asociaciones matricula juridica Nº 5293 de fecha 20 de marzo de 2019 y en la seccion comercio, matricula comercial Nº 5585 de fecha 16 julio de 2019;
B28: 17°) Escritura Nº 1, fecha 21 de enero 2020, fue protocolizada el Acta Nº 91 de fecha 11 de diciembre de 2019 de Asamblea Extraordinaria, Desmaterialización de acciones, modificandose los articulos 4°, 5º, 6°, 7° y 23º del estatuto social, inscripta en la direccion general de los registros publicos, seccion personas juridicas y asociaciones matricula juridica Nº 5293 de fecha 26 de febrero de 2020 y en la seccion comercio, matricula comercial Nº 5585 de fecha 26 de febrero de 2020.
B30: La Sociedad tiene por objeto:
B32: a) Importar y exportar toda clase de mercaderías, por cuenta propia o de terceros y/o asociada a terceros: comprar y vender bienes muebles o inmuebles y constituir derechos reales sobre ellos.
B34: b) Ejercer representaciones, comisiones, mandatos o consignaciones.
B36: c) Elaborar o industrializar todo género de productos o materias primas nacionales o extranjeras.
B38: d) Dar o tomar participación en cualquier sociedad, dentro o fuera del país que se realice con los objetos que se han indicado.
B40: e) Promover la radicación de capitales, empresas e industrias en la República del Paraguay.
B42: f) Explotar empresas de transportes y practicar, en fin, todo acto de comercio lícito.
B44: En el año 1996 la Comisión Nacional de Valores por medio de la Resolución N° 270/96 autoriza la inscripción definitiva de la Compañía como Sociedad Emisora de Capital Abierto.
B47: A la fecha el Capital Integrado asciende a Gs. 635.041.900.000
B48: Ejercicio Fiscal
B50: Conforme a los Estatutos Sociales y para adecuarse a los requerimientos de la Ley 125/91 y sus reglamentaciones el cierre del ejercicio económico y fiscal será el 31 de diciembre de cada año, por lo tanto los estados contables abarcarán el ejercicio correspondiente entre el 1 de enero al 31 de diciembre de cada año civil.
B52: COMPOSICION DEL CAPITAL
B54: A C C I O N E S
B55: Nº DE VOTOS QUE SUSCRIPTO INTEGRADO
B56: CANTIDAD TIPO OTORGA C/U. GS. GS.
B58: 3.792.183.- ORDIN/NOMINATIVAS 5 379.218.300.000.- 379.219.300.000.-
B59: 1.355.574.- ORDIN/NOMINATIVAS 4 135.557.400.000.- 135.557.400.000.-
B60: 1.201.220.- PREFE./NOMINATIVAS 1 RESTR 120.122.000.000.- 120.122.000.000.-
B61: 6.348.977.- 634.897.700.000.- 634.897.700.000.-
B62: ACCIONES EN TESORERIA
B63: 1.442.- PREFER./NOMINATIVAS 144.200.000.- 144.200.000.-
B64: 6.350.419.- 635.041.900.000.- 635.041.900.000.-
B65: ======== ============= =============

Sheet Nota 2
A1: =Indice!C1 -> NICOLAS GONZALEZ ODDONE S.A.E.C.A | D1: Indice
A3: NOTA 2 - RESUMEN DE LAS PRINCIPALES POLÍTICAS CONTABLES
A5: a. Bases de contabilización
A6: Los presentes estados financieros se han preparado siguiendo los criterios de las Normas de Información Financiera (NIF) emitidas por el Consejo de Contadores Públicos del Paraguay sobre la base de costos históricos, excepto para el caso de activos y pasivos en moneda extranjera y las propiedades, planta y equipo según se explica en los puntos c ) y k), y no reconocen en forma integral los efectos de la inflación sobre la situación patrimonial y financiera de la sociedad, sobre los resultados de sus operaciones y los flujos de efectivo, en atención a que la corrección monetaria no constituye una práctica contable obligatoria en el Paraguay.
A7: Según el índice general de precios del consumo (IPC) publicado por el Banco Central del Paraguay, la inflación acumulada del tercer trimestre fue de 4,6% en el año 2021 y 0,5% en el año 2020.
A8: b. Uso de estimaciones contables
A9: La preparación de los presentes estados contables requiere que la Gerencia y el Directorio de la sociedad realicen estimaciones y evaluaciones que afectan el monto de los activos y pasivos registrados y contingentes revelados a fecha de cierre de cada balance, así como también los ingresos y egresos registrados en el ejercicio. El Directorio estima que los resultados reales futuros podrían diferir, en forma poco significativa, de las estimaciones y evaluaciones realizadas a la fecha de preparación de los presentes estados contables.
A11: c. Moneda extranjera
A12: Los activos y pasivos en moneda extranjera se valúan a los tipos de cambio vigentes a la fecha de cierre del balance, publicados por la administración tributaria.
A13: Las diferencias de cambio originadas por fluctuaciones en los tipos de cambio producidos entre las fechas de concertación de las operaciones y su liquidación o valuación al cierre del balance, son reconocidas en resultados.
C14: 2021-09-30 | G14: 2020-12-31
B15: Indicar moneda | C15: Simbología | D15: Miles de Gs. | F15: Indicar moneda | G15: Simbología | H15: Miles de Gs.
A16: Activos C. | B16: Euros | C16: € | D16: 0 | F16: Euros | G16: € | H16: 141891416
A17: Activos C. | B17: Dólar Estadounidense | C17: $ | D17: 420862010617 | F17: Dólar Estadounidense | G17: $ | H17: 392560970518
A18: Activos N.C. | B18: Dólar Estadounidense | C18: $ | D18: 2574927481 | F18: Dólar Estadounidense | G18: $ | H18: 4854660818
A19: Pasivos C. | B19: Dólar Estadounidense | C19: $ | D19: 236597230772 | F19: Dólar Estadounidense | G19: $ | H19: 192070643761
A20: Pasivos NC. | B20: Dólar Estadounidense | C20: $ | D20: 2184057621 | F20: Dólar Estadounidense | G20: $ | H20: 4885020676 | I20: 4885020676
B22: El detalle de las cotizaciones de la moneda extranjera operada por la sociedad es el siguiente:
C24: 2021-09-30 | G24: 2020-12-31
B25: Indicar moneda | C25: Simbología | D25: Cotización Gs. | F25: Indicar moneda | G25: Simbología | H25: Cotización Gs.
A26: Activos | B26: Euros | C26: € | D26: 0 | F26: Euros | G26: € | H26: 8466
A27: Activos | B27: Dólar Estadounidense | C27: $ | D27: 6896 | F27: Dólar Estadounidense | G27: $ | H27: 6892
A28: Pasivos | B28: Dólar Estadounidense | C28: $ | D28: 6919 | F28: Dólar Estadounidense | G28: $ | H28: 6942
A30: d. Efectivo y equivalentes de efectivo
A31: Los saldos de este rubro al 30 de septiembre 2021 y 31 de diciembre de 2020, están compuestos por fondos de libre disponibilidad en poder de la Sociedad y en Bancos de plaza, en las modalidades de cuentas corrientes y cajas de ahorros en guaraníes y en moneda extranjera.
A33: e. Inversiones
A34: Las inversiones temporales se valúan de acuerdo a los siguientes criterios de valuación: * Colocaciones financieras en moneda extranjera: a su valor de cotización al cierre del año/período . Ver Nota 4 * Las inversiones no corrientes en sociedades donde no se ejerce el control, se valúan al valor patrimonial proporcional. Ver Nota 8
A35: Obs.: En caso de la existencia de saldos y transacciones con partes relacionadas, la información que corresponda a ser expuesta por la sociedad, se ajustará a lo requerido por la Norma de Información Financiera N° 7 Revelaciones de partes relacionadas.
A37: f. Previsión para cuentas de dudoso cobro/incobrables
A38: La Sociedad constituye previsiones sobre las cuentas de dudoso cobro o de difícil recuperabilidad, teniendo en cuenta el análisis de la Gerencia sobre la antigüedad y cobrabilidad de cada uno de los créditos. Las cuentas a cobrar en Gestión de Cobro Judicial y las que se encuentran en Convocatoria de Acreedores y/o Quiebra, han sido provisionadas en su totalidad.
A39: Criterio para Previsiones
A40: 1. Clientes que registran atrasos y estan por ser demandados.
A41: 2. Clientes que tienen cuentas con otros proveedores y no estan pudiendo pagar.
A42: 3. Clientes con cheque devueltos.
A43: 4. Clientes que presentan atrasos normales.
A44: 5. Clientes sobregirados de acuerdo al límite de créditos establecido por el comité correspondiente.
A45: 6. Clientes que refinancian sus cuentas.
A47: g. Inventarios
A48: Las existencias están valuadas al costo de adquisición más todos los gastos necesarios hasta la puesta en depósitos de la Compañía. La salida de las existencias es registrada utilizando el sistema de precio promedio ponderado. La Sociedad efectúa previsiones por obsolescencia de acuerdo al análisis de la Gerencia sobre la desvalorización y/o obsolescencia de los mismos. A partir del ejercicio 2008, la Compañía utiliza el Criterio del Valor Neto de Realización para valuar su hacienda vacuna. Ver Nota 7
A49: A partir del ejercicio 2008, la compañía utiliza el criterio del valor neto de realización para valuar su hacienda vacuna. Ver Nota 7
A51: h. Activos disponibles para la venta
A52: Los activos disponibles para la venta representan bienes que fueron desafectados de la actividad productiva y se mantienen con el único objetivo de ser vendidos. Los mismos se valúan, sin amortizar, al menor entre el valor de mercado de los mismos y su costo (valor libro) al momento de su designación como disponibles para la venta.
A54: i. Previsiones para desvalorización y deterioro de inventarios
A55: Las previsiones para desvalorización y deterioro de inventarios han sido estimadas tomando como base la valorización del stock deteriorado existente al cierre del ejercicio.
A57: j. Propiedades, planta y equipo
A58: Las propiedades, planta y equipo se exponen a su costo histórico ajustado por el % del valor residual emitido por la Autoridad Tributaria, menos la correspondiente depreciación acumulada. El incremento neto por la re-expresión se acredita a la respectiva reserva patrimonial, cuyo saldo puede ser utilizado únicamente para aumentar el capital.
A59: El costo de las mejoras que extienden la vida útil de los bienes o aumentan su capacidad productiva es imputado a las cuentas respectivas del activo. Los gastos de mantenimiento son cargados a resultados.
A60: La depreciación es calculada por el método de línea recta, conforme a la vida útil definida por la administración tributaria.
A62: k. Intangibles
A63: Los intangibles se exponen a su costo incurrido menos las correspondientes amortizaciones acumuladas al cierre del año, y son reconocidas en los resultados.
A65: l. Reconocimiento de ingresos y egresos
A66: Los estados contables se preparan sobre la base de lo devengado. Bajo tal base los efectos de las transacciones y otros eventos son reconocidos cuando ocurren (y no cuando el efectivo o su equivalente es recibido o pagado) y son registrados en los libros contables y presentados en los estados financieros en los períodos a que se refieren.
A70: m. Impuesto a la renta
A71: El Impuesto a la Rental, es calculado en base al resultado contable, ajustado por las partidas que la ley tributaria incluye o excluye para la actividad grabable, a esta cifra final se aplica la tasa del 10% en concepto de Impuesto a la Renta Empresarial Ley 6380/19 de Modernización del Sistema Tributario Nacional.
A73: n. Restricciones a la distribución de utilidades
A74: No existen restricciones a la distribución de utilidades mas que lo siguiente:
A75: • La legislación paraguaya establece una transferencia del 5% de las utilidades del ejercicio para la constitución de una reserva legal hasta completar el 20% del
A76: capital integrado.
A77: • De acuerdo a la ley Nº 6380/19 que deroga los libros I, III y IV de la Ley N° 125/91, la cual dispone aplicar sobre el importe a distribuir las siguientes tasas
A78: a) 8% (ocho por ciento) cuando el perceptor de los dividendos, utilidades o rendimientos sea una persona física, jurídica o entidad residente en el país.
A79: b)15% (quince por ciento) cuando el perceptor de los dividendos, utilidades o rendimientos sea una persona física, jurídica o entidad no residente en el país, incluidos los obtenidos por la casa matriz del exterior.
A81: o. Acciones de tesoreria
A82: Al 30 de sptiembre de 2021, el saldo de Acciones en Tesorería es de 1.442 acciones. El valor nominal de dichas acciones es de G. 100.000.- cada una. El tratamiento contable que corresponde es el de las acciones propias en cartera, por lo que se las registró por su valor nominal en una cuenta denominada Acciones en Tesorería, y por la diferencia de valor entre el valor pagado y el valor nominal se debitó a otra cuenta denominada Prima de Recompra de Acciones, actuando ambas cuentas como Reguladoras del Patrimonio Neto.

Sheet Nota 3
A1: =Indice!C1 -> NICOLAS GONZALEZ ODDONE S.A.E.C.A | C1: BG
A3: NOTA 3 - EFECTIVO Y EQUIVALENTE DE EFECTIVO
A4: En miles de guaranies
A6: La composición de la cuenta es la siguiente:
A8: Cuentas | C8: 2021-09-30 | D8: 2020-12-31
A10: Recaudaciones a Depositar | C10: 2954667590 | D10: 5478369942
A11: Fondo Fijo | C11: =13500000+10000000+28000000+12000000+25000000+10000000+3000000 -> 101500000 | D11: =13500000+10000000+24500000+12000000+25000000+10000000+3000000 -> 98000000
A12: Fondo de Sencillo | C12: =1000000+2400000+2000000+1000000 -> 6400000 | D12: =1000000+2200000+2000000 -> 5200000
C13: =SUM(C10:C12) -> 3062567590 | D13: =SUM(D10:D12) -> 5581569942
A15: Bancos Cuentas Corrientes - Moneda Local (Gs) | C15: 7475951113 | D15: 5720172159
A16: Bancos Locales Cajas de Ahorros - Moneda Local (Gs) | C16: 35743999551 | D16: 16393961813
A17: Bancos Locales CTA.CTE Y C.AH - Moneda Extranjera (USD) | C17: =74071236173 -> 74071236173 | D17: 37079192591
A18: Bancos Locales - Moneda Extranjera (EU) | C18: 0 | D18: 141891416
C19: =SUM(C15:C18) -> 117291186837 | D19: =SUM(D15:D18) -> 59335217979
A20: Total Disponibilidades | C20: =+C13+C19 -> 120353754427 | D20: =+D13+D19 -> 64916787921

Sheet Nota 4
A1: =Indice!C1 -> NICOLAS GONZALEZ ODDONE S.A.E.C.A | C1: BG
A3: NOTA 4 - INVERSIONES TEMPORIAS - INVERSIONES FINANCIERAS
A4: En miles de guaranies
A6: La composición de la cuenta es la siguiente:
A8: Cuentas | B8: 2021-09-30 | C8: 2020-12-31
A9: Casa de Bolsa Puente ME | B9: 734879274 | C9: 7867753315
A10: CDA Bancop | B10: 0 | C10: 20676000000
A11: Casa de Bolsa CADIEM | B11: 23575441607 | C11: 27948468587
A12: Puente - Fondos Mutuos ML | B12: 0 | C12: 0
A13: Puente - Fondos Mutuos ME | B13: 86396122 | C13: 31284422782
A14: Regional casa de Bolsa S.A ME | B14: 4288759270 | C14: 11168968440
A15: Pershing LLC- Exterior | B15: 27717380639 | C15: 41352000000
A16: Casa de Bolsa Cadiem Fondos Mutuos ME | B16: 27620328404 | C16: 32079868476
A17: Casa de Bolsa Cadiem Fondos Mutuos ML | B17: 3590650502 | C17: 0
A18: Investor casa de bolsa S.A Fondos mutuos ML | B18: 0 | C18: 0
A19: Regional casa de Bolsa S.A Fondos MutuosG. | B19: 1738353230 | C19: 0
A20: Total | B20: =SUM(B9:B19) -> 89352189048 | C20: =SUM($C$9:C19) -> 172377481600

Sheet Nota 5
A1: =Indice!C1 -> NICOLAS GONZALEZ ODDONE S.A.E.C.A | B1: BG
A3: NOTA 5 - CUENTAS POR COBRAR COMERCIALES
A4: En miles de guaranies
A7: Las cuentas a cobrar comerciales a corto plazo se integran como sigue: | F7: Situación | G7: Monto | H7: % Previsiones sobre Cartera
C8: 2021-09-30 | D8: 2020-12-31 | F8: A Total Cartera no Vencida | G8: =254129618265+7430213211+47744487+22125677218 -> 283733253181 | H8: 0.0299
A9: Deudores por ventas locales | B9: Moneda Local Guaraníes | C9: =179829891988+687884032-C11 -> 161059627268 | D9: 165834315005 | F9: B. Total Cartera Vencida | G9: =+C28+C29+C40+C46+C35 -> 35954860259 | H9: 0.96464
A10: Deudores por ventas locales | B10: Moneda Extranjera Dólares | C10: =2062740140-C12-C16 -> 2056176458 | D10: 3485616440 | F10: Composición Cartera Vencida
A11: Deudores - Entidad relacionada | B11: Moneda Local Guaraníes | C11: =35432457499-49636360-C34+45653229+1000000+316668+6156481473-2446539 -> 19458148752 | D11: 29769291745 | F11: Normal | G11: =+C28+C29+C46 -> 4612935120 | H11: 0.72308
A12: Deudores - Entidad relacionada | B12: Moneda Extranjera Dólares | C12: =624.11*6896 -> 4303862.56 | D12: 3821621 | F12: En Gestión de Cobro | G12: 12233152737 | H12: 1
A13: Cheques adelantados recibidos de clientes | B13: Moneda Local Guaraníes | C13: =68397373750+5454750151 -> 73852123901 | D13: 89615029748 | F13: En Gestión de Cobro Judicial | G13: 19107710418 | H13: 1
A14: Cheques rechazados | B14: Moneda Local Guaraníes | C14: 761236114 | D14: 1382886373 | F14: Total de la cartera de créditos (A+B) | G14: =+G8+G9 -> 319688113440
A15: Cupones Tj.credito | B15: Moneda Local Guaraníes | C15: 47744487 | D15: 33255184
A16: Deudores-Otros ingresos exterior | B16: Moneda Extranjera Dólares | C16: 2259819 | D16: 19171900 | F16: (-) Total Previsiones | G16: =-3211646756-12233152737-19107710418-7430213211 -> -41982723122
A17: Otros | B17: Moneda Extranjera otros | C17: =8684345015-4318389714 -> 4365955301 | D17: 2260509411
A18: Menos Previsiones | C18: -7430213211 | D18: -7954685940 | F18: TOTAL NETO DE LA CARTERA DE CRÉDITOS | G18: =+G14+G16 -> 277705390318
A19: Total | C19: =SUM(C9:C18) -> 254177362752 | D19: =SUM(D9:D18) -> 284449211487
F20: Observaciones
F21: Criterios de Clasificación utilizados | G21: De | H21: A
F22: Normal | G22: 30 | H22: 60
F23: En Gestion de cobro | G23: 61 | H23: 150
F24: En Gestión de Cobro Judicial | G24: Mas de 151
A25: Las cuentas a cobrar comerciales a largo plazo se integran como sigue:
C27: 2021-09-30 | D27: 2020-12-31
A28: Deudores por ventas locales | B28: Moneda Local Guaraníes | C28: =26341544261-C34 -> 4215867043 | D28: 3959410783
A29: Deudores por ventas locales | B29: Moneda Extranjera Dólares | C29: =398130061-C46-C35 -> 393620077 | D29: 0
A30: Deudores por ventas locales | B30: Moneda Extranjera otros
A31: Deudores por ventas en el exterior | B31: Moneda Local Guaraníes
A32: Deudores por ventas en el exterior | B32: Moneda Extranjera Dólares
A33: Deudores por ventas en el exterior | B33: Moneda Extranjera otros
A34: Deudores - Entidad relacionada | B34: Moneda Local Guaraníes | C34: 22125677218 | D34: 0
A35: Deudores - Entidad relacionada | B35: Moneda Extranjera Dólares | C35: =154*6896 -> 1061984 | D35: 0
A36: Deudores - Entidad relacionada | B36: Moneda Extranjera otros
A37: Cheques adelantados recibidos de clientes | B37: Moneda Local Guaraníes
A38: Cheques adelantados recibidos de clientes | B38: Moneda Extranjera Dólares
A39: Cheques adelantados recibidos de clientes | B39: Moneda Extranjera otros
A40: Deudores en gestión judicial | B40: Moneda Local Guaraníes | C40: =12233152737+19107710418 -> 31340863155 | D40: 30147869835
A41: Deudores en gestión judicial | B41: Moneda Extranjera Dólares
A42: Deudores en gestión judicial | B42: Moneda Extranjera otros
A43: Cheques rechazados | B43: Moneda Local Guaraníes
A44: Cheques rechazados | B44: Moneda Extranjera Dólares
A45: Otros | B45: Moneda Local Guaraníes
A46: Deudores-Otros ingresos exterior | B46: Moneda Extranjera Dólares | C46: =6896*500 -> 3448000 | D46: 4824676
A47: Otros | B47: Moneda Extranjera otros | C47: 0 | D47: 0
A48: Menos Previsiones | C48: =-3211646756-12233152737-19107710418 -> -34552509911 | D48: -33359516591
A49: Total | C49: =SUM(C28:C48) -> 23528027566 | D49: =SUM(D28:D48) -> 752588703

Sheet Nota 6
A1: =Indice!C1 -> NICOLAS GONZALEZ ODDONE S.A.E.C.A | B1: BG
A3: NOTA 6 - OTROS CRÉDITOS
A4: En miles de guaranies
A6: La composición de la cuenta es la siguiente:
A8: Cuentas | B8: 2021-09-30 | C8: 2020-12-31
A9: Corrientes - Actividad Comercial
A11: Anticipo de sueldos y comisiones | B11: 300000 | C11: 1625023
A12: Anticipo de remuneraciones Direct. y Gerentes | B12: 20454400 | C12: 1340450
A13: Anticipos para gastos de despachos | B13: 766652246 | C13: 96134895
A14: Anticipo para gastos varios | B14: 12675322 | C14: 58990584
A15: Anticipo para compras activo fijo | B15: 289161548 | C15: 285525648
A16: Anticipo para reparación edificios/activo fijo | B16: 946871067 | C16: 0 | E16: NOTA 6.1 - INVERSIONES FINANCIERAS
A17: Anticipo para instalación de mercaderías | B17: 85318469 | C17: 160074529 | E17: No corrientes
A18: Préstamos al personal | B18: 245527371 | C18: 258491280
A19: Préstamos a terceros | B19: 2127786033 | C19: 1155383625 | E19: Cuentas | F19: 2021-09-30 | G19: 2020-12-31
A20: Deudores por alquileres a cobrar | B20: 114513084 | C20: 113921650
A21: Garantías de alquiler | B21: 32652381 | C21: 31652381 | E21: Intereses a vencer ME-LP | F21: 2176797420 | G21: 4849836142
A22: Intereses s/ Inversiones PF a cobrar | B22: 524393424 | C22: 275528437 | E22: Total Inversiones financieras | F22: =F21 -> 2176797420 | G22: =SUM(G21) -> 4849836142
A23: Seguros a cobrar | B23: 2963098 | C23: 17437386
A24: Retenciones Impuesto a la Renta | B24: 0 | C24: 0
A25: Deudores por alquileres a cobrar ME | B25: 22068441 | C25: 73478507
A26: Garantías de alquiler ME | B26: 168434800 | C26: 168337100
A27: Gastos realizados por cta. De terceros | B27: 128112286 | C27: 128111718
A28: Préstamos a directores | B28: 0 | C28: 0
A29: Intereses a vencer | B29: 152130781 | C29: 1896125207
A30: Impuesto al valor agregado | B30: 18263405 | C30: 363957661
A31: Retenciones de IVA | B31: 0 | C31: 790874499
A32: Alquileres Pagados por Adelantado ME | B32: 205855229 | C32: 401281913
A33: Anticipo Impuesto a la Renta | B33: 1256597526 | C33: 0
A34: Deudores por Vta. de Activo Fijo | B34: 1378010960 | C34: 2859490800
A35: Préstamos a terceros ME | B35: 4427059600 | C35: 0
A36: Préstamos al personal ME | B36: 83931216 | C36: 0
A37: Anticipo para préstamos a terceros | B37: 0 | C37: 2067600000
A38: Anticipo para Inversiones Financieras ME | B38: 0 | C38: 0
A39: Derechos aduaneros a aplicar | B39: 0 | C39: 0
A40: Anticipo para Inversiones Financieras ME | B40: 0 | C40: 0
A41: Derechos aduaneros a aplicar | B41: 0 | C41: 0
A42: Previsiones para incobrables | B42: 0 | C42: 0
A43: Intereses pagados a recuperar ME. INV.FINANC | B43: 0 | C43: 0
A44: Total | B44: =SUM($B$11:B43) -> 13009732687 | C44: =SUM($C$11:C43) -> 11205363293
A47: Corrientes - Actividad Ganadera
A48: Anticipo al personal Act.Ganadera | B48: 75232233 | C48: 11595636
A49: Anticipos a Contratistas Act. Ganadera | B49: 182936425 | C49: 43674137
A50: Anticipos p/ viáticos a la estancia Act. Ganadera | B50: 12658773 | C50: 7149041
A51: Anticipos para gastos varios Act. Ganadera | B51: 0 | C51: 33485700
A52: Combustibles a utilizar | B52: 63528533 | C52: 93365002
A53: Total | B53: =SUM(B48:B52) -> 334355964 | C53: =SUM(C48:C52) -> 189269516
A54: Total general Otros créditos Act. Comercial y Ganadera | B54: =+B44+B53 -> 13344088651 | C54: =+C44+C53 -> 11394632809
A57: NOTA 6 - OTROS ACTIVOS
A58: En miles de guaranies
A60: La composición de la cuenta es la siguiente:
A61: Cuentas | B61: 2020-03-31 | C61: 2019-12-31
A62: Corrientes
A63: Impuesto Inmobiliario | B63: 241663304 | C63: 0
A64: Tasas Especiales | B64: 36821402 | C64: 0
A65: Patente Municipal | B65: 395438487 | C65: 0
A66: Impuestos y Tasas s/ Inversiones Inmob. | B66: 147672359 | C66: 0
A67: Impuestos y Tasas Prop. Rural | B67: 185842301 | C67: 0
A68: Total | B68: =SUM(B63:B67) -> 1007437853 | C68: =SUM(C63:C67) -> 0
A72: Cuentas | B72: 2020-12-31 | C72: 2019-12-31
A73: No Corrientes
A74: Derecho Aduanero a Regularizar | B74: 0 | C74: 0
A75: Total | B75: =SUM(B74:B74) -> 0 | C75: =SUM(C74:C74) -> 0
A78: En miles de guaranies
A80: La composición de la cuenta es la siguiente:
A81: Cuentas | B81: 2021-09-30 | C81: 2020-12-31
A82: Corrientes
A83: Impuesto Inmobiliario | B83: 92103036 | C83: 0
A84: Tasas Especiales | B84: 21236442 | C84: 0
A85: Patente Municipal | B85: 135212673 | C85: 0
A86: Impuestos y Tasas Mun. s/ INM.INV. | B86: 48668108 | C86: 0
A87: Impuestos y Tasas Prop. Rural | B87: 66152329 | C87: 0
A88: Total | B88: =SUM(B83:B87) -> 363372588 | C88: =SUM(C83:C87) -> 0

Sheet Nota 7
A1: =Indice!C1 -> NICOLAS GONZALEZ ODDONE S.A.E.C.A | B1: BG
A3: NOTA 7 – INVENTARIOS
A4: En miles de guaranies
A6: Los bienes de cambio están compuestos de la siguiente manera:
A8: Cuentas | B8: 2021-09-30 | C8: 2020-12-31
A9: Corrientes - Actividad Comercial
A10: Mercaderías Gravadas | B10: 120933250466 | C10: 97971446508
A11: Mercaderías S/Dto. 6406/05 | B11: 53373138700 | C11: 53504991180
A12: Mercaderías con Obsolescencia | B12: =7571957552+9908904+1461249157 -> 9043115613 | C12: =10831592434+9908904+2220707135 -> 13062208473
A13: Fondo de Obsolescencia | B13: =-2656753050-9908904-345386936 -> -3012048890 | C13: =-3769848040-9908904-578627332 -> -4358384276
A14: Repuestos Gravados | B14: 9939288475 | C14: 6027506776
A15: Repuestos S/Dto. 6406/05 | B15: 3376645 | C15: 0
A16: Repuestos con Obsolescencia | B16: =1182852571+32616353 -> 1215468924 | C16: 1622584140
A17: Fondo de Obsolescencia | B17: =-757879337-32595789 -> -790475126 | C17: -1022344666
A18: Importaciones en curso | B18: 237545822344 | C18: 168362411469
A19: Anticipo a Proveedores del Exterior | B19: 23317098050 | C19: 8312682009
A20: Total | B20: =SUM(B10:B19) -> 451568035201 | C20: =SUM(C10:C19) -> 343483101613
A22: Corrientes - Actividad Ganadera
A24: Hacienda Vacuna | B24: 22458990540 | C24: 16143163260
A25: Hacienda Vacuna - Capitalización | B25: 44037000 | C25: 4909773580
A26: Total | B26: =SUM(B24:B25) -> 22503027540 | C26: =SUM(C24:C25) -> 21052936840
A27: Total general Inventarios Corrientes | B27: =+B20+B26 -> 474071062741 | C27: =+C20+C26 -> 364536038453
A31: No corrientes - Actividad Comercial
A33: Repuesto Grav. C/Obsolescencia | B33: =3664913232+62403739 -> 3727316971 | C33: 2866324632
A34: Fondo de Obsolescencia. Repuesto Grav. | B34: =-994562299-55263903 -> -1049826202 | C34: -1138862036
A35: Total | B35: =SUM(B33:B34) -> 2677490769 | C35: =SUM(C33:C34) -> 1727462596
A36: Total general Inventarios no corrientes | B36: =SUM(B35) -> 2677490769 | C36: =SUM(C35) -> 1727462596

Sheet Nota 8
A1: =Indice!C1 -> NICOLAS GONZALEZ ODDONE S.A.E.C.A | B1: BG
A4: Nota 8 - INVERSIONES EN ASOCIADAS
A5: En miles de guaraníes
A7: Las inversiones en sociedades donde no se ejerce control se describen a continuación:
B9: 2021-09-30 | C9: 2020-12-31
A10: Total Inversión | B10: =+C35 -> 47024924776 | C10: 44713924776
A12: a) Datos sobre la sociedad:
D13: =IFERROR(IF([2]Indice!B6="","2XX2",YEAR([2]Indice!B6)),"2XX2") -> 2020 | E13: 2021-09-30 | F13: 2020-12-31
A14: Nombre de Sociedad | B14: RUC | C14: Cantidad de acciones | D14: Total Patrimonio neto | E14: Total del resultado
A15: Todo Franquicia S.A | B15: 80056073-6 | C15: 17499 | D15: 10106849270 | E15: 7813643472 | F15: -5669536393
A16: Confort para el Hogar - CPH S.A | B16: 80083931-5 | C16: 33313 | D16: 34630603592 | E16: 6904280240 | F16: 7932478564
A17: Best Credit S.A | B17: 80111979-0 | C17: 291 | D17: 300000000 | E17: 9601193 | F17: 0
A18: Best Home S.A | B18: 80117733-2 | C18: 2020 | D18: 2030000000 | E18: 7994226 | F18: 0
A21: Total | E21: =SUM(E15:E20) -> 1.473551913e+10 | F21: =SUM(F15:F20) -> 2262942171
A24: b) Datos sobre la inversión:
A26: Cantidad de acciones | B26: Participación sobre los votos (%) | C26: Total Inversión (miles de Gs) | D26: Participación sobre el Patrimonio Neto (%) | E26: Total valuación patrimonial proporcional | F26: Resultado sobre inversiones
A27: 17477 | B27: 5 voto por accion | C27: 10093710366 | D27: =+C27/D15 -> 0.9987 | E27: =D27*D15 -> 10093710366 | F27: =+D27*E15 -> 7803485736
A28: 33304 | B28: 1 voto por accion | C28: 34620214410 | D28: =+C28/D16 -> 0.9997 | E28: =D28*D16 -> 34620214410 | F28: =+D28*E16 -> 6902208956
A29: 291 | B29: 1 voto por accion | C29: =+A29*1000000 -> 291000000 | D29: =+C29/D17 -> 0.97 | E29: =D29*D17 -> 291000000 | F29: =+D29*E17 -> 9313157.21
A30: 2020 | B30: 1 voto por accion | C30: =+A30*1000000 -> 2020000000 | D30: =+C30/D18 -> 0.9950738916 | E30: =D30*D18 -> 2020000000 | F30: 7954845.576
D31: =+C31/D19 ->  | E31: =C31*D19 -> 0 | F31: 0
E32: =C32*D20 -> 0
A33: 0 | C33: =+A33*1000000 -> 0 | D33: =+C33/D17 -> 0 | E33: 0 | F33: =+D33*E21 -> 0
A34: 0 | C34: =+A34*1000000 -> 0 | D34: =+C34/D18 -> 0 | E34: 0 | F34: =+D34*E22 -> 0
C35: =SUM(C27:C34) -> 47024924776 | E35: =SUM(E27:E32) -> 47024924776 | F35: =SUM(F27:F32) -> 1.472296269e+10

Sheet Nota 9
A1: Obs.:
A2: Incluir aclaraciones en los siguientes casos:
A3: 1. Cuando los bienes de uso tienen alguna restricción sobre su utilización, como por ejemplo cuando están garantizando obligaciones. En su caso también hacer referencia a la nota correspondiente.
A4: 2. Cuando exista alguna previsión por desvalorización (“deterioro”), detallando la evolución de la misma en el transcurso del año.
A5: 3. Si se están capitalizando intereses al costo de bienes de uso. En su caso deberá aclararse la tasa utilizada para la capitalización.
A6: Ver adicionalmente Norma de Información Financiera N° 11 Propiedades, planta y equipo
A7: NICOLAS GONZALEZ ODDONE SAECA | B7: BG
A9: NOTA 9 - PROPIEDADES, PLANTA Y EQUIPO - NETO
A10: En miles de guaraníes
B11: V A L O R E S D E O R I G E N | G11: D E P R E C I A C I O N E S
B12: AL Inicio del periodo | C12: Adquisiciones+ Transf. Del periodo | D12: Bajas del periodo | E12: Revalúo del año | F12: Valor al cierre del periodo | G12: Depreciación acumulada al inicio del año | H12: Altas y Transf. Del periodo | I12: Bajas de del periodo | J12: Revalúo depreciación acumulada del año | K12: Depreciación acumulada al final del periodo | L12: Valor neto resultante | M12: Valor neto resultante
L13: 2021-09-30 | M13: 2020-12-31
A14: Actividad Comercial
A15: Muebles, Útiles y enseres | B15: 15654467909 | C15: =527273+1054545+6910000+42099750+1407100+837685+2006404+1299236-42099750+850641+596393+365885+1000000+781179+1636364+2363636-2621436+545455+1363636+9247745+942466+32750000+1585103+1288488+1600000+990930+6201520+6044003+6178941-222520+563636+563636+2636364+3090909+631430+1265111+1307673+1307673+563636+563636+1500000+1567641+1405626+2181818+2545455+2545455+2772727+750000+618182+1218182+42038815+34175000+68350000+3280800+1640400+46210820+3419360+872727+249091+102319533+1118187+837600+1559770+20089696+563636+563636+563636+2590909+654545+1309091+932091+1786080+1190728+5580504+512486 -> 459538603 | D15: 0 | F15: =+B15+C15-D15 -> 16114006512 | G15: 7064368619 | H15: =359525382+505107292-19493+155365743+166854946+151545275 -> 1338379145 | I15: 0 | K15: =+G15+H15-I15 -> 8402747764 | L15: =+F15-K15 -> 7711258748 | M15: 8590099290
A16: Máquinas de Oficinas | B16: 4847064895 | C16: =3277273+4252149+4049974+4049974+96728434+1644346+3376010+3376010+3910295+5131927+3376010+5131927+5131927+5131927+38720794+4379838-1705485+6217600+6217600+6217600+852709+12429103+603000+1206000-852709+6246651+91393630+696285904+4445024+4445024+4445024+6237436+12512000+1985461+365255969+22510175+3974002+94048+2115524+432523+21306+3974002+570423+4014347+2912624+4014347+2507400+8750486+373010306+3873900+1577195+1654131+1577195+1654131+4008584+4683300+2569673+1654131 -> 1868260109 | D16: =980289+4813128+3269708 -> 9063125 | F16: =+B16+C16-D16 -> 6706261879 | G16: 3416824823 | H16: =136374747+350997789+9759+81228757+174348779+196537278 -> 939497109 | I16: =4652202-1382494 -> 3269708 | K16: =+G16+H16-I16 -> 4353052224 | L16: =+F16-K16 -> 2353209655 | M16: 1430240072
A17: Maquinarias, Herramientas y Equipos | B17: 3415377288 | C17: =47300000+42099750+1022727+5681818+867955+17914066+718182+78702279+936364+580569+38313136+12023523+19271152+936364 -> 266367885 | D17: 0 | F17: =+B17+C17-D17 -> 3681745173 | G17: 2149174720 | H17: =84483947+153475902+39659975+48280547+49140602 -> 375040973 | I17: 0 | K17: =+G17+H17-I17 -> 2524215693 | L17: 1157529480 | M17: 1266202568
A18: Edificios y Construcciones | B18: 118317919729 | C18: =602822333+1768488 -> 604590821 | D18: 23061183 | F18: 118899449367 | G18: 25171400989 | H18: =595104743+630446249+204258498-1768488-248829+211896223+205462043 -> 1845150439 | I18: 0 | K18: =+G18+H18+I18 -> 27016551428 | L18: =+F18-K18 -> 91882897939 | M18: 93146518740
A19: Transportes Terrestres | B19: 6407512912 | C19: =110327261+6000000+11363636+114334551+111272752+11363636+59732696 -> 424394532 | D19: =92041154+25755961 -> 117797115 | F19: =+B19+C19-D19 -> 6714110329 | G19: 4250566871 | H19: =15781975+105385722+188775423+49026857+49026857+55351496 -> 463348330 | I19: 41537936 | K19: 4672377265 | L19: 2041733064 | M19: 2156946041
A20: Instalaciones | B20: 15882463592 | C20: =46169768+5727273 -> 51897041 | D20: 0 | F20: 15934360633 | G20: 12799848524 | H20: =230869079+461833124+115450367+115450367+115450368 -> 1039053305 | I20: =D20 -> 0 | K20: 13838901829 | L20: =+F20-K20 -> 2095458804 | M20: 3082615068
A21: Construcciones en curso | B21: 213798506 | C21: =9170000+27978182+61107025+2018182+29141336+47035080+13150000+5989153+1521386+30103466+15493522+5071255+24266468+56403864+4823727+57475727+17963660+9306830+136363636+206202254 -> 760584753 | D21: =260000+280000+220000+72727+263637+181818+181818+263637+909+602822333 -> 604546879 | F21: 369836380 | G21: 0 | H21: 0 | I21: 0 | K21: 0 | L21: =+F21-K21 -> 369836380 | M21: 213798506
A22: Construcciones en previo Ajeno | B22: 1826371556 | C22: 0 | D22: 0 | F22: 1826371556 | G22: 1704960284 | H22: =13174946+21800339+5829214+5829214+5829214 -> 52462927 | I22: 0 | K22: 1757423211 | L22: =+F22-K22 -> 68948345 | M22: 121411272
A23: Aviones | B23: 3746716084 | C23: 0 | D23: 0 | F23: 3746716084 | G23: 2299151076 | H23: =95703636+167477816+43863575+43863575+43863575 -> 394772177 | I23: 0 | K23: 2693923253 | L23: =+F23-K23 -> 1052792831 | M23: 1447565008
A24: Sub Totales | B24: =SUM(B15:B23) -> 170311692471 | C24: =SUM(C15:C23) -> 4435633744 | D24: =SUM(D15:D23) -> 754468302 | F24: =SUM(F15:F23) -> 173992857913 | G24: =SUM(G15:G23) -> 58856295906 | H24: =SUM(H15:H23) -> 6447704405 | I24: =SUM(I15:I23) -> 44807644 | K24: =SUM(K15:K23) -> 65259192667 | L24: =SUM($L$15:L23) -> 108733665246 | M24: =SUM($M$15:M23) -> 111455396565
A26: Actividad Ganadera
A27: Construcciones | B27: =977199205+974781158+262460243+42091183 -> 2256531789 | C27: =4881818+14983200+20498809+14983200+14515300 -> 69862327 | D27: =14983200 -> 14983200 | F27: =+B27+C27-D27 -> 2311410916 | G27: 486952026 | H27: =11534635+10591031+13366692 -> 35492358 | I27: 0 | K27: 522444384 | L27: =+F27-K27 -> 1788966532 | M27: 1769579763
A28: Instalaciones | B28: 884246061 | C28: =8313636 -> 8313636 | D28: 0 | F28: =+B28+C28-D28 -> 892559697 | G28: 664145843 | H28: =6945820+9956892+8025857 -> 24928569 | I28: 0 | K28: 689074412 | L28: =+F28-K28 -> 203485285 | M28: 220100218
A29: Mejoras | B29: =7013853549+2947869159+1276882744+10056263148+59942704+321600302+1885496794+38483202+49053841+1653549810+694953452 -> 25997948705 | C29: =22659545+36502200+18805000+22500000+29941800+79324200+11859091+40700000+5627273+9584545+11537900+3458182+4769000+51983000+63717800+28093000+52089818+58635000+43032500+25968182+22581339+124545455+150913636+6109091+3038718+913771+5749858 -> 934639904 | D29: 0 | F29: =+B29+C29-D29 -> 26932588609 | G29: 11553206986 | H29: =319644698+419920308+398464527 -> 1138029533 | I29: 0 | K29: =G29+H29-I29 -> 12691236519 | L29: =+F29-K29 -> 14241352090 | M29: 14444741719
A30: Muebles y Equipos | B30: =212764439+11422637+5550985 -> 229738061 | C30: =1545455+1127273+1242846+1436364+5069566+513519+3376010+2116092+477467+893040+595364+1395126+2238727+5721461 -> 27748310 | D30: 0 | F30: =+B30+C30-D30 -> 257486371 | G30: 174324401 | H30: =3596093+5711931+5567000 -> 14875024 | I30: 0 | K30: =G30+H30-I30 -> 189199425 | L30: =+F30-K30 -> 68286946 | M30: 55413660
A31: Maquinarias e Implementos | B31: =2318557984+167018593+79247788+89970847+72357801 -> 2727153013 | C31: =6135454+4868181 -> 11003635 | D31: =126913257 -> 126913257 | F31: 2611243391 | G31: 1880353232 | H31: =43982520+16204249+78248945+59813684 -> 198249398 | I31: 63766961 | K31: 2014835669 | L31: =+F31-K31 -> 596407722 | M31: 846799781
A32: Equipos y Herramientas | B32: =22077404+69035510+1062945384 -> 1154058298 | C32: =3340455+4868181+3340455+6135454+5040909+2989800 -> 25715254 | D32: =14344090 -> 14344090 | F32: 1165429462 | G32: 870320103 | H32: =24007662+45776553+45582928 -> 115367143 | I32: 0 | K32: 985687246 | L32: 179742216 | M32: 283738195
A33: Transportes Terrestres | B33: =461406079+75267674+171910540+2356112 -> 710940405 | C33: 0 | D33: 0 | F33: 710940405 | G33: 332012788 | H33: =18712833+28530617+26070980 -> 73314430 | I33: 0 | K33: 405327218 | L33: 305613187 | M33: 378927617
A34: Equipos de Comunicación | B34: 103038406 | C34: =4545455+3636364 -> 8181819 | D34: 0 | F34: 111220225 | G34: 83215981 | H34: =1208198+2193791+2635574 -> 6037563 | I34: 0 | K34: 89253544 | L34: 21966681 | M34: 19822425
A35: Sub Totales | B35: =SUM(B27:B34) -> 34063654738 | C35: =SUM(C27:C34) -> 1085464885 | D35: =SUM(D27:D34) -> 156240547 | F35: =SUM(F27:F34) -> 34992879076 | G35: =SUM(G27:G34) -> 16044531360 | H35: =SUM(H27:H34) -> 1606294018 | I35: =SUM(I27:I34) -> 63766961 | K35: =SUM(K27:K34) -> 17587058417 | L35: =SUM($L$27:L34) -> 17405820659 | M35: =SUM($M$27:M34) -> 18019123378
L36: =+M33-'[3]Nota 9'!$L$36 -> 0
A37: NO SUJETOS A DEPRECIACION | L37: =+M34-'[3]Nota 9'!$L$37 -> 0
A39: Actividad Comercial
A40: Inmuebles-Terrenos | B40: 26146885643 | C40: 0 | D40: 0 | F40: =+B40+C40-D40 -> 26146885643 | G40: 0 | H40: 0 | I40: 0 | K40: 0 | L40: =+F40-K40 -> 26146885643 | M40: 26146885643
B41: =SUM(B40) -> 26146885643 | C41: =SUM(C40) -> 0 | D41: =SUM(D40) -> 0 | F41: =SUM(F40) -> 26146885643 | G41: =SUM(G40) -> 0 | H41: =SUM(H40) -> 0 | I41: =SUM(I40) -> 0 | K41: =SUM(K40) -> 0 | L41: =SUM(L40) -> 26146885643 | M41: 26146885643
A42: Actividad Ganadera
A43: Inmuebles Rurales | B43: 155232969990 | C43: 0 | D43: 0 | F43: 155232969990 | G43: 0 | H43: 0 | I43: 0 | K43: 0 | L43: 155232969990 | M43: 155232969990
B44: =SUM(B43) -> 155232969990 | C44: 0 | D44: 0 | E44: 0 | F44: 155232969990 | G44: 0 | H44: 0 | I44: 0 | J44: 0 | K44: 0 | L44: =SUM(L43) -> 155232969990 | M44: 155232969990
A46: Hacienda Permanente | B46: =26300644704+51673810+4942850709+824990852 -> 32120160075 | C46: =6432584492+84863418+17670000+930000+1818182+819472090+3181818+35714286+92618182+18327273+44376000+954000+45570909+28800000+1440000+95238095+16571429+870000+6362182+75000+6000000 -> 7753437356 | D46: =79785000+202952382+132295294+162355827+232525682+44100000+110812500+192354790+1327928864+33468750+215768750+203895000+5492475600 -> 8430718439 | F46: =+B46+C46-D46 -> 31442878992 | G46: 947789472 | H46: 0 | I46: =101476191+61254782 -> 162730973 | K46: =G46+H46-I46 -> 785058499 | L46: =+F46-K46 -> 30657820493 | M46: 31172370603
A47: Pasturas | B47: 17701577148 | C47: =3600000+5000000+12935026 -> 21535026 | D47: 0 | F47: 17723112174 | G47: 10187762795 | H47: =230423655+304273753+275879791 -> 810577199 | I47: 0 | K47: =G47+H47-I47 -> 10998339994 | L47: =+F47-K47 -> 6724772180 | M47: 7513814353
B48: =SUM(B46:B47) -> 49821737223 | C48: =SUM(C46:C47) -> 7774972382 | D48: =SUM(D46:D47) -> 8430718439 | F48: =SUM(F46:F47) -> 49165991166 | G48: =SUM(G46:G47) -> 11135552267 | H48: =SUM(H46:H47) -> 810577199 | I48: =SUM(I46:I47) -> 162730973 | K48: =SUM(K46:K47) -> 11783398493 | L48: =SUM(L46:L47) -> 37382592673 | M48: =SUM(M46:M47) -> 38686184956
A49: Sub Totales | B49: =+B41+B44+B48 -> 231201592856 | C49: =+C41+C44+C48 -> 7774972382 | D49: =+D41+D44+D48 -> 8430718439 | F49: =+F41+F44+F48 -> 230545846799 | G49: =+G41+G44+G48 -> 11135552267 | H49: =+H41+H44+H48 -> 810577199 | I49: =I41+I44+I48 -> 162730973 | K49: =K41+K44+K48 -> 11783398493 | L49: =+L41+L44+L48 -> 218762448306 | M49: =+M41+M44+M48 -> 220066040589
A50: Total General | B50: =+B24+B35+B49 -> 435576940065 | C50: =+C24+C35+C49 -> 13296071011 | D50: =+D24+D35+D49 -> 9341427288 | F50: =+F24+F35+F49 -> 439531583788 | G50: =+G24+G35+G49 -> 86036379533 | H50: =+H24+H35+H49 -> 8864575622 | I50: =+I24+I35+I49 -> 271305578 | K50: =+K24+K35+K49 -> 94629649577 | L50: =+L24+L35+L49 -> 344901934211 | M50: =+M24+M35+M49 -> 349540560532

Sheet Nota 10
A1: =+Indice!C1 -> NICOLAS GONZALEZ ODDONE S.A.E.C.A | B1: BG
A3: NOTA 10 – ACTIVOS DISPONIBLES PARA LA VENTA
A4: En miles de guaraníes
B5: 2021-03-31 | C5: 2020-12-31
A6: Propiedad, planta y equipo
A7: (Detallar bienes de uso)
A8: Total | B8: 0 | C8: 0
A10: Activos intangibles
A11: (Detallar activos intangibles)
A12: Total | B12: 0 | C12: 0
A14: Inversiones
A15: Inmuebles - Edificios y terrenos | B15: 2021-09-30 | C15: 2020-12-31
A16: 1 INM. COLONIA INDEP. 360 M2 PADRON 18219,1 INM. COL.IND. 361 PADRON 18220, 3 INM ENCARN. 508 M2 CCC23-1685-09 , 4 INM. COLONIA TACUARI, 1082 M2 PADRON 11512 | B16: 15377402.75 | C16: 15377402.75
A17: CCCAT. 11-0076-19 CABALLERO Y AZARA | B17: 0 | C17: =577201193+6988390+3152068 -> 587341651
A18: CTA CTE 17225-06 LOTE 14 MANZANA G HORQUETA RUTA V KM40 | B18: 69041421.81 | C18: 69041421.81
A19: CTA CTE 17-228-03 LOTE 2 MANZANA I HORQUETA RUTA V | B19: 63287970.38 | C19: 63287970.38
A20: CTA CTE CAT 30-0023-21 VILLAHAYES MAT P01/5 187 | B20: 274583346.2 | C20: =271659400+2923946 -> 274583346
A21: CTA. CTE. CAT Nº 17-0423-03 DISTRITO DE CONCEPCION | B21: 111608903.9 | C21: 111608903.9
A22: CTA. CTE. CAT nº 18/1705 PADRON 2016- CAPIIBARY | B22: 60075415.82 | C22: 60075415.82
A23: CTA. CTE. CAT. Nº 27-1538-03 LUQUE LOTE 5 | B23: =598643522+705966875 -> 1304610397 | C23: =598643522+705966875 -> 1304610397
A24: CTA. CTE. CAT. Nº 27-5132-03/04/05 DTO. CAPIATA | B24: 105688018 | C24: 105688018
A25: CTA. CTE. Nº 12-0323-08 SUP 1116,5 M2FINCA 11-252 ESPAÑA 663 DTO.SAN ROQUE | B25: =3369682163+2409465633 -> 5779147796 | C25: =3369682163+2409465633 -> 5779147796
A26: CTA. CTE. Nº 12-0578-05 ARTIGAS (EX ALARCON) | B26: 1027199683 | C26: 1027199683
A27: CTA.CTE. CAT. Nº 12-0578-04 LOTE 19 Y 20- ARTIGAS | B27: 1585648257 | C27: =260057118+1325591139 -> 1585648257
A28: CTA.CTE. CAT. Nº 15-1359-07-00-01 - ARBOLEDA | B28: 0 | C28: 147438344
A29: CTA.CTE. CAT. Nº 19-0063-08 FINCA Nº 271- CAACUPE | B29: =752438845+1632383635 -> 2384822480 | C29: =752438845+1632383635 -> 2384822480
A30: CTA.CTE.CAT. 11-0058-12 CABALLERO Y A. | B30: =137925115+886639840 -> 1024564955 | C30: =137925115+886639840 -> 1024564955
A31: CTA.CTE.CAT. 11-0058-13 CABALLERO Y AZARA | B31: =125290755+805424132 -> 930714887 | C31: =125290755+805424132 -> 930714887
A32: CTA.CTE.CAT. 11-0058-14 CABALLERO Y A. | B32: =234891612+1468708737 -> 1703600349 | C32: =234891612+1468708737 -> 1703600349
A33: CTA.CTE.CAT. 11-0058-15 CABALLERO Y A. | B33: =35224244+685284614 -> 720508858 | C33: =35224244+685284614 -> 720508858
A34: CTA.CTE.CAT. 11-0058-16 CABALLERO Y A. | B34: =166708121+1042377113 -> 1209085234 | C34: =166708121+1042377113 -> 1209085234
A35: CTA.CTE.CAT. 11-0076-20 CABALLERO Y MD | B35: =478693068+994931729 -> 1473624797 | C35: =478693068+994931729 -> 1473624797
A36: CTA.CTE.CAT. 13-0620-09/10/11 PIZARRO | B36: =169092282+647372954 -> 816465236 | C36: =169092282+647372954 -> 816465236
A37: CTA.CTE.CAT. 15-0885-01 JULIO C. | B37: =452753345+404941204 -> 857694549 | C37: =452753345+404941204 -> 857694549
A38: CTA.CTE.CAT. 15-0885-18 | B38: 404941204.2 | C38: 404941204.2
A39: CTA.CTE.CAT. 27-0081-11 | B39: 2883271536 | C39: 2883271536
A40: CTA.CTE.CAT. 27-0552-16 ITAUGUA | B40: 4565216.288 | C40: 4565216
A41: CTA.CTE.CAT. 27-1077-13/14 - AREGUA | B41: 8410059.315 | C41: 8410059.315
A42: CTA.CTE.CAT. 27-1734-01 GALERIA SL | B42: =4136759404+2260092578+1537866771+2988683572 -> 10923402325 | C42: =4136759404+2260092578 -> 6396851982
A43: CTA.CTE.CAT. Nº 15-1359-07-00-01 - ARBOLEDA | B43: 0 | C43: 378515111
A44: CTA.CTE.CAT.26-2259-03-04-05 C.ESTE. | B44: 39914730.34 | C44: 39914730.34
A45: ASFALTADO 17-0081-11 | B45: 29641834.65 | C45: 29641834.65
A46: CURUGUATY PADRON Nº 1763 | B46: 101215081.3 | C46: 101215081.3
A47: DEP. NRO A101 BLOQUE A 1ER PISO Y 2 COLCH. 20 Y 21 COCH ADIC 5 BALKONIA | B47: =1211654638+19524206 -> 1231178844 | C47: 1211654638
A48: FINCA Nº7 DIST.STA.ROSA DEL AGUARAY, PADRON 13 LOTE1 MANZ34 GUSTAVO DIAZ | B48: =170958982.99+191996659+1184414412 -> 1547370054 | C48: =170958982.99+191996662 -> 362955645
A49: DISTRITO ABAI, FINCA 2207, PADRON 3198 SUPERF. 9999m2 | B49: 603590668 | C49: 603590668
A50: INMUEBLE FINCA 7745 DEPART. CAAZAPA,FRACCION LOMA CLAVEL 1000MTRS. | B50: 125000000 | C50: 125000000
A51: FINCA 903 SUP. 588 M2 LOTE 7 MANZANA 11 YBY YAU | B51: 28767259.48 | C51: 28767259.48
A52: FINCA N° 21-289 - CAAGUAZU PADRON 17946 | B52: 185685128.4 | C52: 185685128.4
A53: FINCA Nº 29584, PADRON Nº 26964, CAPIATA | B53: 8922678.825 | C53: 8922678.825
A54: FRACCION SOL NACIENTE LOTE Nº9 MANZANA 06 CTA CTE. 27-0129-18 | B54: =502727273+133636364+15461233 -> 651824870 | C54: 651824870
A55: INMUEBLE CON FINCA 24282 CDE | B55: 144329029.1 | C55: 144329029.1
A56: INMUEBLES CON MAT.K01/32285 HERNANDARIAS | B56: 329004765.9 | C56: =322759697+6245069 -> 329004766
A57: LOTE 1 PADRON 12192 FINCA 1173 MAT 19371 CAACUPE | B57: 305214087 | C57: 305214087
A58: PADRON 2882-FINCA 3403 EUSEBIO AYALA | B58: 26683208.59 | C58: 26683208.59
A59: PADRON 3182-FINCA 3330 E.AYALA | B59: 50481747.13 | C59: 50481747.13
A60: PADRON 6324 BO TELLEZ CUE CNEL BOGADO ITAPUA | B60: 48433169.02 | C60: 48433169.02
A61: PADRON Nº 1266 / FINCA Nº 1147 - AYOLAS | B61: 167947.4828 | C61: 167947.4828
A62: DISTRITO DE ITAUGUA SUPERFICIE de 900 m2., FINCA Nº 15.972, PADRON Nº 15.461 | B62: 31483792.11 | C62: 31483792.11
A63: CCC27-0190-27 FINCA 10886 SAN LORENZO | B63: 151171716.2 | C63: 151171716.2
A64: CCC 26-0971-20, distrito CDE, 736m2 AVDA. BERNARDINO CABALLERO | B64: =2499623407+1484255029-679675+118245454+73733969 -> 4175178184 | C64: 3983198761
A65: DISTRI.SAN LORENZO LOTE 7 CCC27-4056-11 367m2 | B65: 10000000 | C65: 10000000
A66: CTA CTE CAT 19-2650-08 427,68m2 CAACUPE | B66: =16873259+3354605 -> 20227864 | C66: 20227862
A67: YPANE MAT 4428 27-1860-13 | B67: 1700000 | C67: 1700000
A68: CONSTRUCCIONES EN CURSO | B68: 2079992539 | C68: 4656791365
A69: Total general | B69: =SUM(B16:B68) -> 4.76691195e+10 | C69: =SUM(C16:C68) -> 4.543674504e+10

Sheet cred (hidden)
A1: =Indice!C1 -> NICOLAS GONZALEZ ODDONE S.A.E.C.A | C1: BG
A4: NOTA 10 - CREDITOS POR VENTAS
A5: En miles de guaranies
A10: Cuentas | B10: 2020-03-31 | C10: 2019-12-31
A11: Casa de Bolsa Puente ME | B11: 13354381956 | C11: 10266827892
A12: CDA Bancop | B12: 30921600000 | C12: 31459200000
A13: Puente - Fondos Mutuos ME | B13: 0 | C13: 3560595316
A14: Total | B14: =SUM($B$11:B13) -> 44275981956 | C14: =SUM($C$11:C13) -> 45286623208

Sheet Nota 11
A1: =Indice!C1 -> NICOLAS GONZALEZ ODDONE S.A.E.C.A | B1: BG
A3: NOTA 11 – ACTIVOS INTANGIBLES
A4: En miles de guaranies
A6: Las cuentas Activos intengibles se componen como sigue:
A8: Cuentas | B8: 2021-09-30 | C8: 2020-12-31
A9: Actividad Comercial
A10: Marcas | B10: =54104002-54104002 -> 0 | C10: 0
A11: Gastos de Organización | B11: =43068550-43068550 -> 0 | C11: 0
A12: Gastos de Organización | B12: 43068550 | C12: 43068550
A13: Amortización acum. Gastos de Organiz. | B13: -43068550 | C13: -43068550
A14: Licencias de Informática | B14: 7830482635 | C14: 6517454738
A15: Amortización acum. Licenc. de Informática | B15: -3502608591 | C15: -2468109719
A16: Programas de Informática | B16: 4287120189 | C16: 3748352451
A17: Amortización acum. Programas de Inform. | B17: -2910277704 | C17: -2435701164
A18: Licencias para Teléfonos | B18: 351811895 | C18: 345380986
A19: Amortización acum. Lic. para teléfonos | B19: -294503988 | C19: -254709369
A20: Programas de Informática en Línea S.A | B20: 342316500 | C20: 342316500
A21: Amortización acum. Program. de inf. en línea | B21: -342316500 | C21: -342316500
A22: Total | B22: =SUM(B10:B21) -> 5762024436 | C22: =SUM(C10:C21) -> 5452667923
A24: Actividad Ganadera
A25: Marca NGO | B25: =599465-599465 -> 0 | C25: 0
A26: Marca NGO | B26: 599465 | C26: 599465
A27: Amortización acum. Marcas y señales | B27: -599465 | C27: -599465
A28: Licencias de Informática Act. Ganadera | B28: 14269091 | C28: 14269091
A29: Amortización acum. Lic. De Informática Act. Ganad. | B29: -14269091 | C29: -13854886
A30: Total | B30: =SUM(B25:B29) -> 0 | C30: =SUM(C25:C29) -> 414205
A31: Total general | B31: =+B22+B30 -> 5762024436 | C31: =+C22+C30 -> 5453082128

Sheet Nota 12
A1: =Indice!C1 -> NICOLAS GONZALEZ ODDONE S.A.E.C.A | C1: BG
A3: NOTA 12 – GOODWILL
A4: En miles de guaranies
A5: NO APLICA
A7: Goodwill | B7: 2021-09-30 | C7: 2020-12-31
A11: Total general | B11: =SUM(B8:B10) -> 0 | C11: =SUM(C8:C10) -> 0

Sheet Nota 13
A1: =Indice!C1 -> NICOLAS GONZALEZ ODDONE S.A.E.C.A | B1: BG
A3: NOTA 13 – CUENTAS POR PAGAR COMERCIALES
A4: En miles de guaranies
A6: Las cuentas por pagar comerciales se componen como sigue:
A8: Cuentas | B8: 2021-09-30 | C8: 2020-12-31
A9: Actividad Comercial
A10: Proveedores del Exterior
A12: Jose Alladio e Hijo Sa | B12: 9892775614 | C12: 213041162
A13: Guangdong Chigo Heating | B13: 96845104 | C13: 0
A14: Seb do Brasil | B14: 0 | C14: 5241176608
A15: Whirlpool S.A | B15: 3548605233 | C15: 3241380300
A16: Rational International AG | B16: 1141550641 | C16: 1520073079
A17: Refrimate engenharia do frio LTDA. | B17: 0 | C17: 175722638
A18: Whirlpool Chile LTDA. | B18: 4564464 | C18: 3071737812
A19: Kronen Internacional S.A | B19: 5194231680 | C19: 2739868556
A20: Shanghai Qi Yun Enterprise | B20: 112697503 | C20: 0
A21: Whirlpool Corporation | B21: 52059453 | C21: 0
A22: Fábrica austral de productos electricos S.A | B22: 0 | C22: 5697124737
A23: Middleby Worldwide Sociedad Anónima | B23: 4463101 | C23: 0
A24: York InternationalCorporation | B24: 1182662248 | C24: 5622326
A25: Vitamix corporation | B25: 27673578 | C25: 0
A26: Groupe Seb Chile com. LTD | B26: 1641944154 | C26: 4922830581
A27: Sony Uruguay Branck de Sony Latin | B27: 142774188 | C27: 210682758
A28: Cem S.A | B28: 295233730 | C28: 297069006
A29: Metalurgica Siemsen LTDA. | B29: 1623543 | C29: 0
A30: Color Visao do Brasil industria acrilica LTDA. | B30: 22787035 | C30: 0
A31: Metalúrgica Trapp S.A | B31: 0 | C31: 689170521
A32: Glaziar Electrical Appliances S.L | B32: 0 | C32: 153508446
A33: LG electronics inc. | B33: 0 | C33: 1928151608
A34: Total | B34: =SUM(B12:B33) -> 23362491269 | C34: =SUM(C12:C33) -> 30107160138
A36: Proveedores Locales
A37: Bancard S.A | B37: 18246998 | C37: 17861902
A38: Total | B38: =SUM(B37) -> 18246998 | C38: =SUM(C37) -> 17861902
A40: Total general | B40: =+B34+B38 -> 23380738267 | C40: =+C34+C38 -> 30125022040

Sheet Nota 14
A1: =Indice!C1 -> NICOLAS GONZALEZ ODDONE S.A.E.C.A | B1: BG
A3: NOTA 14 – DEUDAS BANCARIAS - PRESTAMOS A CORTO PLAZO
A4: En miles de guaranies
A6: Las cuentas Deudas Bancarias se componen como sigue:
A8: Préstamos de Entidades Locales
A9: Por Cartas de Crédito
D10: 2021-09-30 | J10: 2020-12-31
A11: Cuentas | B11: Vencimiento | C11: Símbolo | D11: Moneda | F11: Tipo de Garantía | H11: Vencimiento | I11: Símbolo | J11: Moneda | K11: Importe (miles de Gs) | L11: Tipo de Garantía
A12: BBVA Banco | B12: S/tipo de Negociación | C12: USD | D12: =IFERROR(VLOOKUP(C12,'[1]Base de Monedas'!A:B,2,0),"") -> Dólar estadounidense | E12: 60193146877 | F12: A sola firma | H12: S/tipo de Negociación | I12: USD | J12: =IFERROR(VLOOKUP(I12,'[1]Base de Monedas'!A:B,2,0),"") -> Dólar estadounidense | K12: 74298686264 | L12: A sola firma
A13: Banco Regional S.A.E.C.A | B13: S/tipo de Negociación | C13: USD | D13: =IFERROR(VLOOKUP(C13,'[1]Base de Monedas'!A:B,2,0),"") -> Dólar estadounidense | E13: 84949397998 | F13: A sola Firma | H13: S/tipo de Negociación | I13: USD | J13: =IFERROR(VLOOKUP(I13,'[1]Base de Monedas'!A:B,2,0),"") -> Dólar estadounidense | K13: 61533481518 | L13: A sola firma
A14: Banco Basa | B14: S/tipo de Negociación | C14: USD | D14: =IFERROR(VLOOKUP(C14,'[1]Base de Monedas'!A:B,2,0),"") -> Dólar estadounidense | E14: 54541782542 | F14: A sola firma | H14: S/tipo de Negociación | I14: USD | J14: =IFERROR(VLOOKUP(I14,'[1]Base de Monedas'!A:B,2,0),"") -> Dólar estadounidense | K14: 7025523576 | L14: A sola firma
A15: Total | D15: =IFERROR(VLOOKUP(C15,'[1]Base de Monedas'!A:B,2,0),"") ->  | E15: =SUM(E12:E14) -> 199684327417 | J15: =IFERROR(VLOOKUP(I15,'[1]Base de Monedas'!A:B,2,0),"") ->  | K15: =SUM(K12:K14) -> 142857691358
D16: =IFERROR(VLOOKUP(C16,'[1]Base de Monedas'!A:B,2,0),"") ->  | J16: =IFERROR(VLOOKUP(I16,'[1]Base de Monedas'!A:B,2,0),"") -> 
A17: Por Préstamos | D17: =IFERROR(VLOOKUP(C17,'[1]Base de Monedas'!A:B,2,0),"") ->  | J17: =IFERROR(VLOOKUP(I17,'[1]Base de Monedas'!A:B,2,0),"") -> 
A18: BBVA Banco - Préstamos | B18: 2021-11-25 | C18: PYG | D18: Guarani | E18: 3500000000 | F18: A sola firma | H18: 2021-11-25 | I18: PYG | J18: Guarani | K18: 14000000000 | L18: A sola firma
A19: Banco Regional- Préstamos | B19: 2021-11-18 | C19: PYG | D19: Guarani | E19: 13740000000 | F19: A sola Firma | H19: 2021-11-18 | I19: PYG | J19: Guarani | K19: 13740000000 | L19: A sola firma
A20: Banco GNB- Préstamos | B20: 2021-11-30 | C20: PYG | D20: Guarani | E20: 53000000000 | F20: A sola Firma | H20: 2021-11-30 | I20: PYG | J20: Guarani | K20: 53000000000 | L20: A sola firma
A21: Total | E21: =SUM(E18:E20) -> 70240000000 | J21: =IFERROR(VLOOKUP(I21,'[1]Base de Monedas'!G:H,2,0),"") ->  | K21: =SUM(K18:K20) -> 80740000000
A23: Intereses préstamos entidades financieras a pagar
A24: Intereses s/ préstamos bancarios a pagar | C24: PYG | D24: Guarani | E24: 557568492 | H24: - | I24: PYG | J24: Guarani | K24: 3016479452 | L24: -
A25: (-) Intereses s/ préstamos bancarios a Vencer | C25: PYG | D25: Guarani | E25: -517430823 | H25: - | I25: PYG | J25: Guarani | K25: -2928806163 | L25: -
A26: Total | E26: =SUM(E24:E25) -> 40137669 | K26: =SUM(K24:K25) -> 87673289
A27: Total general deudas Bancarias | D27: =IFERROR(VLOOKUP(C27,'[1]Base de Monedas'!A:B,2,0),"") ->  | E27: =+E15+E21+E26 -> 269964465086 | K27: =+K15+K21+K26 -> 223685364647

Sheet Nota 15
A1: =Indice!C1 -> NICOLAS GONZALEZ ODDONE S.A.E.C.A | B1: BG
A3: NOTA 15 – PORCION CORRIENTE DE LA DEUDA A LARGO PLAZO
A4: En miles de guaranies
A5: NO APLICA
A6: Porción corriente de la deuda a largo plazo | B6: 2021-09-30 | C6: 2020-12-31
A7: Cuentas por pagar comerciales
A8: Préstamos bancarios
A9: Bonos bursátiles
A10: Intereses bancarios a pagar
A11: Intereses bursatiles a pagar
A13: Total general | B13: =SUM($B$7:B12) -> 0 | C13: =SUM($C$7:C12) -> 0

Sheet Nota 16
A1: =Indice!C1 -> NICOLAS GONZALEZ ODDONE S.A.E.C.A | B1: BG
A3: NOTA 16 – REMUNERACIONES Y CARGAS SOCIALES A PAGAR
A4: En miles de guaranies
A6: Las cuentas cargas sociales se componen como sigue:
A8: Cuentas | B8: 2021-09-30 | C8: 2020-12-31
A9: Actividad Comercial
A10: Seguro social I.P.S | B10: 625767126 | C10: 505754082
A11: Sueldos y comisiones a Pagar | B11: 38782378 | C11: 43187778
A12: Aguinaldos a Pagar | B12: 912397999 | C12: 0
A13: Gratificaciones/Bonificaciones a Pagar | B13: 0 | C13: 2252238150
A14: Remuneracion Directorio a pagar | B14: 0 | C14: 3993000
A15: Total | B15: =SUM($B$10:B14) -> 1576947503 | C15: =SUM($C$10:C14) -> 2805173010
A17: Actividad Ganadera
A18: Seguro Social I.P.S a pagar Act. Ganadera | B18: 38534854 | C18: 34797050
A19: Sueldos y Jornales a pagar Act. Ganadera. | B19: 5500000
A20: Total | B20: =SUM(B18:B19) -> 44034854 | C20: =SUM(C18) -> 34797050
A21: Total general | B21: =+B15+B20 -> 1620982357 | C21: =+C15+C20 -> 2839970060

Sheet Nota 17
A1: =Indice!C1 -> NICOLAS GONZALEZ ODDONE S.A.E.C.A | B1: BG
A3: NOTA 17 – IMPUESTOS A PAGAR
A4: En miles de guaranies
A6: Las cuentas Impuestos a pagar se componen como sigue:
A8: cuentas | B8: 2021-09-30 | C8: 2020-12-31
A9: Impuesto al Valor Agregado | B9: 1964886462 | C9: 0
A10: Retenciones de Impuestos | B10: 54553755 | C10: 68092124
A11: Impuesto a la renta a pagar | B11: 0 | C11: 2794172660
A12: Retencion de Impuesto Prov.Locales | B12: 235854641 | C12: 440483321
A13: Retención IRE a pagar | B13: 115200 | C13: 0
A14: IVA aduana a pagar | B14: 0 | C14: 0
A15: Total Impuestos a pagar | B15: =SUM(B9:B14) -> 2255410058 | C15: =SUM(C9:C14) -> 3302748105

Sheet Nota 18
A1: =Indice!C1 -> NICOLAS GONZALEZ ODDONE S.A.E.C.A | B1: BG
A3: NOTA 18 - PROVISIONES
A4: En miles de guaranies
A6: Provisiones Moneda Local
A7: Cuentas | B7: 2021-09-30 | C7: 2020-12-31
A8: Actividad Comercial
A9: Publicidad a Pagar | B9: 4658788122 | C9: 4887364071
A10: Cuentas a pagar | B10: 2804049158 | C10: 2081347825
A11: Fletes a pagar | B11: 91590625 | C11: 180090553
A12: Seguros a Pagar | B12: 165180200 | C12: 474305668
A13: Despachantes - Ctas. a Pagar | B13: 195804599 | C13: 41714617
A14: Cheques emitidos al Cobro | B14: 873249035 | C14: 0
A15: Remuneración síndico a pagar | B15: 15634091 | C15: 16378158
A16: Remuner. Direct. Y Gerente a pagar | B16: 0 | C16: 0
A17: Honorarios Profesionales a Pagar | B17: 56316750 | C17: 41409023
A18: Cuentas a pagar - Tarjetas | B18: 53622143 | C18: 42669834
A19: Cuentas a Pagar - Vales | B19: 178990000 | C19: 198590000
A20: Cuentas a Pagar Instaladores | B20: 382470500 | C20: 435568009
A21: Seguros a Vencer | B21: -112468120 | C21: -420288176
A22: Cuentas a Vencer | B22: -53614558 | C22: -30249644
A23: Viáticos a Reembolsar | B23: 1865000 | C23: 310000
A24: Total | B24: =SUM(B9:B23) -> 9311477545 | C24: =SUM(C9:C23) -> 7949209938
A26: Provisiones Moneda Extranjera
A27: Publicidad a Pagar M.E | B27: 117623000 | C27: 218666058
A28: Cuentas a pagar M.E | B28: 2312286755 | C28: 5175654195
A29: Fletes a pagar M.E | B29: 10303930339 | C29: 11065604230
A30: Seguros a pagar M.E | B30: 302129344 | C30: 149026274
A31: Honorarios Profesionales M.E a pagar | B31: 164373022 | C31: 73307520
A32: Intereses M.E a devengar | B32: 152638178 | C32: 1909881194
A33: Seguros M.E a vencer | B33: 0 | C33: -813954
A34: Cuentas ME vencer | B34: -162640441 | C34: 0
A35: Total | B35: =SUM($B$27:B34) -> 13190340197 | C35: =SUM($C$27:C34) -> 18591325517
A36: Total General Provisiones Act. Comercial | B36: =+B24+B35 -> 22501817742 | C36: =+C24+C35 -> 26540535455
A40: Actividad Ganadera
A41: Provisiones Moneda Local
A42: Seguros a pagar Act. Ganadera | B42: 12800000 | C42: 10968000
A43: Cuentas a pagar Act. Ganadera | B43: 308926478 | C43: 378397667
A44: Seguros a Vencer Act. Ganadera | B44: -12846716 | C44: -10702754
A45: Total | B45: =SUM($B$42:B44) -> 308879762 | C45: =SUM($C$42:C44) -> 378662913
A47: Provisiones Moneda Extranjera
A48: Cuentas a pagar M.E Act. Ganadera | B48: 114682148 | C48: 23405509
A49: Total | B49: =SUM($B$48:B48) -> 114682148 | C49: =SUM($C$48:C48) -> 23405509
A50: Total General Provisiones Act. Ganadera | B50: =+B45+B49 -> 423561910 | C50: =+C45+C49 -> 402068422
A51: Total Provisiones | B51: =+B50+B36 -> 22925379652 | C51: =+C50+C36 -> 26942603877

Sheet Nota 19
A1: =Indice!C1 -> NICOLAS GONZALEZ ODDONE S.A.E.C.A | B1: BG
A3: NOTA 19 – OTROS PASIVOS CORRIENTES
A4: En miles de guaranies
A6: Otros Pasivos corrientes Moneda Local
A7: cuentas | B7: 2021-09-30 | C7: 2020-12-31
A9: Anticipos de Clientes | B9: 0 | C9: 53017206
A10: Garantías de Alquiler | B10: 78564000 | C10: 67832000
A11: Señas | B11: 4336678 | C11: 4336678
A12: Anticipos Varios | B12: 815326689 | C12: 1449424749
A13: Comisiones S/Vtas. A pagar | B13: 49601221 | C13: 55730908
A14: Dividendos a Pagar | B14: 1018867595 | C14: 0
A15: Total | B15: =SUM(B9:B14) -> 1966696183 | C15: =SUM(C9:C14) -> 1630341541
A17: Otros Pasivos Corrientes Moneda Extranjera
A18: Anticipos de clientes M.E | B18: 200525200 | C18: 448367940
A19: Garantías de Alquiler M.E | B19: 42551850 | C19: 42693300
A20: Total | B20: =SUM(B18:B19) -> 243077050 | C20: =SUM(C18:C19) -> 491061240
A23: Ingresos No Devengados
A24: Ingresos no devengados | B24: 912796029 | C24: 1170484811
A25: Total | B25: =SUM(B24) -> 912796029 | C25: =SUM(C24) -> 1170484811
A26: Total general Otros Pasivos Corrientes | B26: =+B15+B20+B25 -> 3122569262 | C26: =+C15+C20+C25 -> 3291887592
A28: NOTA 19.1 –PASIVOS NO CORRIENTES
A30: Otros Pasivos corrientes Moneda Extranjera
A31: cuentas | B31: 2021-09-30 | C31: 2020-12-31
A32: Intereses a Devengar ME LP | B32: 2184057621 | C32: 4885020675
A33: Total general Otros Pasivos Corrientes | B33: =+B22+B27+B32 -> 2184057621 | C33: =+C22+C27+C32 -> 4885020675

Sheet Nota 20
A1: =Indice!C1 -> NICOLAS GONZALEZ ODDONE S.A.E.C.A | C1: BG
A3: NOTA 20 – CAPITAL INTEGRADO
A4: En miles de guaranies
A6: Cuentas | B6: 2021-09-30 | C6: 2020-12-31
A8: Capital | B8: =+B9+B10+B11+B12 -> 643227002000 | C8: =+C9+C10+C11+C12 -> 643227002000
A9: Capital Suscripto | B9: 800000000000 | C9: 800000000000
A10: Capital a Integrar | B10: -164958100000 | C10: -164958100000
A11: Acciones en tesorería | B11: -144200000 | C11: -144200000
A12: Premio de Emisión | B12: 8329302000 | C12: 8329302000
A13: Cantidad de Acciones | B13: 6348977 | C13: 6348977
A14: Valor Nominal de Acciones | B14: 100000 | C14: 100000
A15: Total | B15: =SUM(B9:B12) -> 643227002000 | C15: =SUM(C9:C12) -> 643227002000

Sheet Nota 21
A1: =Indice!C1 -> NICOLAS GONZALEZ ODDONE S.A.E.C.A | B1: BG
A3: NOTA 21 – RESERVAS
A4: En miles de guaranies
B5: 2021-09-30 | C5: 2020-12-31
A7: a.1 Reserva de revalúo Ley 125/91 | B7: =57008661721+33978554091+472930672+107394557 -> 91567541041 | C7: =57008661721+33978554091+472930672+107394557 -> 91567541041
A8: a.2 Reserva de revalúo Técnico | B8: 87405000939 | C8: 87405000939
A9: Total | B9: =SUM(B7:B8) -> 178972541980 | C9: =SUM(C7:C8) -> 178972541980
A13: b.1 Reserva legal | B13: 54822159516 | C13: 49691949474
A14: b.2 Reserva legal CPH | B14: 506745718 | C14: 506745718
A15: Total | B15: =SUM(B13:B14) -> 55328905234 | C15: =SUM(C13:C14) -> 50198695192
A18: c Reservas estatutarias
A22: d Reservas facultativas | B22: =+SUM($B$23:B28) -> 0 | C22: =+SUM($C$23:C28) -> 0
A23: d.1. (nuevas cuentas a incluir)
A24: d.2. (nuevas cuentas a incluir)
A30: c. Reserva para Capitalización | B30: 148352473750 | C30: 80120680209
A31: Total | B31: =SUM(B30) -> 148352473750 | C31: =SUM(C30) -> 80120680209
A36: Correspondiente a las Acciones en Tesoreria
A37: * Prima de compra de Acciones | B37: -47385000 | C37: -47385000
A38: Total general Reservas | B38: =B9+B15+B31+B37 -> 382606535964 | C38: =+C9+C15+C31+C37 -> 309244532381

Sheet Nota 22
A1: =Indice!C1 -> NICOLAS GONZALEZ ODDONE S.A.E.C.A | C1: BG
A3: NOTA 22 – DIFERENCIA TRANSITORIA POR CONVERSION
A4: En miles de guaranies
A5: NO APLICA
B6: 2021-09-30 | C6: 2020-12-31
A7: Diferencia transitoria por conversión
B10: - | C10: -

Sheet Nota 23
A1: =Indice!C1 -> NICOLAS GONZALEZ ODDONE S.A.E.C.A | C1: BG
A3: NOTA 23 – RESULTADOS ACUMULADOS
A5: Cuenta | B5: 2021-06-30 | C5: 2020-12-31
A6: Resultados Acumulados | B6: 0 | C6: 0
A7: Totales | B7: =SUM($B6:B$6) -> 0 | C7: =SUM($C6:C$6) -> 0
A11: Cuenta | B11: 2021-09-30 | C11: 2020-12-31
A12: Resultado de ejercicios anteriores | B12: 0 | C12: 0
A13: Resultado del ejercicio | B13: 74115008613 | C13: 102604200814
A14: Totales | B14: =SUM($B$13:B13) -> 74115008613 | C14: =SUM($C$13:C13) -> 102604200814

Sheet Nota 24
A1: =Indice!C1 -> NICOLAS GONZALEZ ODDONE S.A.E.C.A | C1: BG
A3: NOTA 24 – INTERES MINORITARIO
A4: En miles de guaranies
A5: NO APLICA
B6: 2021-09-30 | C6: 2020-12-31
A7: Interes Minoritario
B9: - | C9: -

Sheet Nota 25
A1: =Indice!C1 -> NICOLAS GONZALEZ ODDONE S.A.E.C.A | C1: ER
A3: NOTA 25 – VENTAS
A4: En miles de guaranies
A6: Las Ventas netas al 30 de setiembre de 2021 y 2020 son las siguientes:
A8: Cuentas | B8: 2021-09-30 | C8: 2020-09-30
A9: Ventas Actividad Comercial
A10: Ventas de Mercaderías | B10: =19117315042+500275991628 -> 519393306670 | C10: 438691931156
A11: Venta de Repuestos | B11: 3919491683 | C11: 4010042494
A12: Ventas Servicio Técnico | B12: 4113720050 | C12: 1495229208
A13: Total Ventas Actividad Comercial | B13: =SUM(B10:B12) -> 527426518403 | C13: =SUM(C10:C12) -> 444197202858
A16: Ventas Actividad Ganadera
A17: Ventas Activ. Ganadera | B17: 9232114560 | C17: 2238200982
A18: Ventas Activ. Ganadera capitalización | B18: 7976947616 | C18: 870739223
A19: Ventas Equinos | B19: 0 | C19: 0
A20: Total Ventas Actividad Ganadera | B20: =SUM(B17:B19) -> 17209062176 | C20: =SUM(C17:C19) -> 3108940205

Sheet Nota 26
A1: =Indice!C1 -> NICOLAS GONZALEZ ODDONE S.A.E.C.A | B1: ER
A3: NOTA 26 - COSTO DE VENTAS
A4: Miles de guaraníes
A6: Costo de ventas | B6: 2021-09-30 | C6: 2020-09-30
A7: Comercial
A8: Existencia inicial del inventario | B8: 168535470731 | C8: 323834508963
A9: + Compra de bienes y servicios | B9: 668407643144 | C9: 299389678730
A10: + Costo de producción | B10: 0 | C10: 0
A11: - Existencia final de inventario | B11: -454245525970 | C11: -309702144812
A12: Ganadera
A13: Existencia inicial del inventario | B13: 16143163260 | C13: 22025480989
A14: + Compra de bienes y servicios | B14: 0 | C14: 0
A15: + Costo de producción
A16: - Existencia final de inventario | B16: -22503027540 | C16: -11594997745
A17: Tranferencia por reclasificacion de ganado/VM | B17: 23568926456 | C17: -7321543039
A18: Total costo de ventas | B18: =SUM(B8:B17) -> 399906650081 | C18: =SUM(C8:C17) -> 316630983086

Sheet Nota 27
A1: =Indice!C1 -> NICOLAS GONZALEZ ODDONE S.A.E.C.A | B1: ER
A3: NOTA 27 - GASTOS
A4: Miles de guaraníes
A6: El rubro está compuesto de la siguiente forma:
A8: Cuentas | C8: 2021-09-30 | F8: 2020-09-30
B9: Gastos de Ventas | C9: Gastos Administrativos | D9: Total | E9: Gastos de Ventas | F9: Gastos Administrativos | G9: Total
A10: Movilidad y viáticos | B10: =631817220+5635340+21667983+33309658+46006077+38000+56327676+211000 -> 795012954 | C10: =34455187+198496+3551018 -> 38204701 | D10: =+C10+B10 -> 833217655 | E10: 500285184 | F10: 10678914 | G10: =+F10+E10 -> 510964098
A11: Combustibles y lubricantes | B11: =570071+84012124+147969826+150000 -> 232702021 | C11: =117141528+2492947+1662078+1422578+9852825+2906189 -> 135478145 | D11: =+B11+C11 -> 368180166 | E11: 249507140 | F11: 93468608 | G11: =+F11+E11 -> 342975748
A12: Gastos de alquiler | B12: =154858054+933354868+117000000 -> 1205212922 | C12: =183915000+27638699 -> 211553699 | D12: =+C12+B12 -> 1416766621 | E12: 1277924060 | F12: 194997069 | G12: =+F12+E12 -> 1472921129
A13: Computación y redes | B13: 0 | C13: 0 | D13: 0 | E13: 0 | F13: 0 | G13: =+F13+E13 -> 0
A14: Gastos por servicios | B14: =55100712+2347818+603691866+128680481+4545454 -> 794366331 | C14: =357935008+604720061+8156592+18945455+1759451 -> 991516567 | D14: 1785882898 | E14: =32058034+180900000+55605418+720798629 -> 989362081 | F14: =219407546+112628671+21491535 -> 353527752 | G14: 1342889833
A15: Honorarios profesionales y asesoramiento | B15: =170733136+148632363+401447503+99433005+77327271 -> 897573278 | C15: =1153425942+106543500+62073999+212640+61795000+12986050+59235006+10485000 -> 1466757137 | D15: 2364330415 | E15: 768050237 | F15: 5904372487 | G15: 6672422724
A16: Impuestos y tasas | B16: =4968700 -> 4968700 | C16: 750165042 | D16: 755133742 | E16: 3419300 | F16: 685022310 | G16: 688441610
A17: Gastos de reparación y mantenimiento | B17: =16895662+532200986+12393578+5920407 -> 567410633 | C17: =493063013+298988582+318985068 -> 1111036663 | D17: 1678447296 | E17: 481298280 | F17: 1093176660 | G17: 1574474940
A18: Seguros pagados | B18: =954546+280514700+31215370+5191972 -> 317876588 | C18: =43026005+54515506+4031442+24003938+814842 -> 126391733 | D18: 444268321 | E18: 160143611 | F18: 153387042 | G18: 313530653
A19: Otros gastos de operación | B19: 0 | C19: 0 | D19: 0 | G19: 0
A20: Remuneraciones de administradores, directores, síndicos y consejo de vigilancia | B20: 0 | C20: =707850000+39123333+46902273 -> 793875606 | D20: 793875606 | E20: =693330000+38115000+44667702 -> 776112702 | F20: 776112702 | G20: 1552225404
A21: Sueldos y Jornales | B21: =2512398450+18639+3289177401+59199521+551659491+132336000+3575353407+6000000+1511844321+80597342+333621631+22847342 -> 12075053545 | C21: =2546629940+375736690+61770000+88280000+497663703+1066577583+549963334+475375464 -> 5661996714 | D21: =+C21+B21 -> 17737050259 | E21: 10527784444 | F21: 5212312750 | G21: 15740097194
A22: Contribuciones Sociales | B22: =84471754+100087964+998272350+35973952+320711350+8920000+114331057+1096420+39286259+199549249+85132712+636493332+69147671+211247249+24176545+57422986+40073824+350053657+8691972+114967738+11695722+27889562+65348953+3003750+21098113 -> 3629144141 | C22: =142979604+35966366+522321119+27191635+166697470+15271242+24330000+88648717+29334313+88016510+190508025+62706593+29353333+33000000+101032250+29493057+31333333+83606952+219284+28895330 -> 1730905133 | D22: 5360049274 | E22: 3569513898 | F22: 1364675205 | G22: 4934189103
A23: Gastos del personal y capacitación | B23: =1119976+195375000+20479534+17101709+3120202+25454+35670000+4611364+4619840+450000+12674391+319305000+7402240+56772773+7589393+20639350+8700000+138375940+13475091+7500000+156780000+2653627+16647869+19754545+6628000+35850000+746361+318182+75700 -> 1114461541 | C23: =1707521+202825000+1872800+37709086+21251401+800787+15685912+2439024+22315000+89089+6710963+6589467+5813396+579120875+26670000+204543+9755449+7734922+25000000+24910000+31835906+7778133+4145454+6195000+12021441+186368000+12405000+50908+8339687+14228769+2981000 -> 1285554533 | D23: =+C23+B23 -> 2400016074 | E23: 1316379011 | F23: 336116332 | G23: 1652495343
A24: Comisiones a Vendedores | B24: 1551764455 | C24: 0 | D24: =+C24+B24 -> 1551764455 | E24: 1413745439 | F24: 0 | G24: 1413745439
A25: Honorarios por servicios técnicos | B25: =183049236+6480000 -> 189529236 | C25: 0 | D25: =+C25+B25 -> 189529236 | E25: 304395883 | F25: 0 | G25: 304395883
A26: Gastos de Publicidad y Propaganda | B26: 17656291998 | C26: 0 | D26: 17656291998 | E26: 12236065663 | F26: 0 | G26: 12236065663
A27: Intereses, multas y recargos impositivos | B27: 0 | C27: 0 | D27: =+C27+B27 -> 0 | E27: 0 | F27: 441275210 | G27: 441275210
A28: Intereses a bancos e instituciones financieras | B28: 0 | C28: 0 | D28: 0 | F28: 0 | G28: 0
A29: Depreciación bienes de uso | B29: 0 | C29: =1338398638+940869844+375040973+1846918927+463348330+1039053305+52462927+394772177 -> 6450865121 | D29: =+B29+C29 -> 6450865121 | E29: 0 | F29: 5470961268 | G29: 5470961268
A30: Amortización activos intangibles | B30: 0 | C30: =2630233+16964095+1034498872+474576540+39794619 -> 1568464359 | D30: =+B30+C30 -> 1568464359 | E30: 0 | F30: 1287844161 | G30: 1287844161
A31: Previsiones | B31: 0 | C31: 0 | D31: 0 | E31: 0 | F31: 0 | G31: 0
A32: Gastos de Distribución | B32: 4264599818 | C32: 0 | D32: =+C32+B32 -> 4264599818 | E32: 4352208402 | F32: 0 | G32: 4352208402
A33: Otros | B33: =400226739510-378180061256+20502579535+13516005971+5311402950-2098573242+3224888794-2418953407-B10-B11-B12-B14-B15-B16-B17-B18-B21-B22-B23-B24-B25-B26-B32 -> 14788060694 | C33: =18466914561+780548291+3661971158+1052861266+859868910-C10-C11-C12-C13-C14-C15-C16-C17-C18-C19-C20-C21-C22-C23-C24-C25-C26-C27-C28-C29-C30-C31-C32 -> 2499399033 | D33: =+C33+B33 -> 17287459727 | E33: =12699172181-E14 -> 11709810100 | F33: =3179854543-F14 -> 2826326791 | G33: =+F33+E33 -> 14536136891
A34: Total | B34: =+SUM($B$10:B33) -> 60084028855 | C34: =+SUM($C$10:C33) -> 24822164186 | D34: =+SUM($D$10:D33) -> 84906193041 | E34: =SUM(E10:E33) -> 50636005435 | F34: =+SUM($F$10:F33) -> 26204255261 | G34: =+SUM($G$10:H33) -> 76840260696

Sheet Nota 28
A1: =Indice!C1 -> NICOLAS GONZALEZ ODDONE S.A.E.C.A | B1: ER
A3: Nota 28 - Otros Ingresos y gastos operativos
A4: Miles de guaraníes
A6: El rubro está compuesto de la siguiente forma:
A8: Otros Ingresos | E8: Otros gastos
A9: Cuentas | B9: 2021-09-30 | C9: 2020-09-30 | E9: Cuentas | F9: 2021-09-30 | G9: 2020-09-30
A10: Actividad Comercial | E10: Actividad Ganadera
A11: Créditos Recuperados Gr. | B11: 415915696 | C11: 844772682 | E11: Gastos Administrativos | F11: -794764317 | G11: -563193376
A12: Reembolso de Seguros Gr. | B12: 341758400 | C12: 83121344 | E12: Gastos de Explotación | F12: -3688637345 | G12: -3995786934
A13: Ingresos por comisiones | B13: 5991391 | C13: 651901 | E13: Depreciación Bienes de uso | F13: =-1606291018-810577199 -> -2416868217 | G13: -1874086190
A14: Ingresos Varios GR. | B14: 447877598 | C14: 98130230 | E14: Amortización Licencias Informática | F14: -414205 | G14: -414204
A15: Otros ingresos Varios GR. | B15: 25094002 | C15: 85122143 | E15: Gastos de Ventas | F15: -189093013 | G15: -33750400
A16: Ingresos varios EX de IVA | B16: 5794008 | C16: 0 | E16: Gastos de Ventas Capitalización | F16: -1563075994 | G16: -348582194
A17: Diferencias de Inventarios | B17: 823626430 | C17: 152596776 | E17: Diferencias de Cambios | F17: -1303606 | G17: -28224537
A18: Ingresos por servicios de Logística | B18: 1581679635 | C18: 916771818 | E18: Pérdida de Inventarios | F18: -799901952 | G18: 0
A19: Ingresos varios de logística | B19: 40581804 | C19: 25507347 | E19: Total | F19: =SUM(F11:F18) -> -9454058649 | G19: =SUM(G11:G18) -> -6844037835
A20: Ingresos varios de T.I | B20: 23179972 | C20: 17509799
A21: Fletes cobrados | B21: 35929616 | C21: 12509357
A22: Desafectación de Mercad. y Rep c/Obsol. | B22: =1114066516+268216001+210651485+31965314 -> 1624899316 | C22: 7299718338
A23: Otros ingresos Varios de ventas | B23: 534055763 | C23: 86291136
A24: Ingresos varios GR.de ventas | B24: 803289509 | C24: 819746232
A25: Ingresos por Acuerdos comerciales | B25: 70298202 | C25: 443438021
A26: Aporte publicitario del Exterior | B26: 0 | C26: 829450716
A27: Publicidad Cobrada | B27: 0 | C27: 986102920
A28: Ingresos varios de Marketing | B28: 25226026 | C28: 40634650
A29: Otros Ingresos varios GR-repuestos | B29: 400000 | C29: 24110014
A30: Servicio de Delivery - Repuestos | B30: 6307299 | C30: 1698668
A31: Servicio de Delivery - ST | B31: 175143595 | C31: 141007834
A32: Ingresos por servicios varios ST | B32: 111193047 | C32: 102761784
A33: Otros ingresos varios ST | B33: 24297500 | C33: 17668193
A34: Otros ingresos varios Gr ST | B34: 4805625 | C34: 1582500
A35: Ingresos extraordinarios -devoluc.der.Aduan. | B35: 25355802 | C35: 128974090
A36: Ingresos varios Avion | B36: 0 | C36: 32734372
A37: Creditos recuperados EX | B37: 5858255 | C37: 0
A38: Total Otros Ingresos Act. Comerc. | B38: =SUM(B11:B37) -> 7158558491 | C38: =SUM(C11:C37) -> 13192612865
A40: Actividad Ganadera
A41: Diferencias de Cambios | B41: 549584 | C41: 1738355
A42: Ingresos Varios | B42: 47887634 | C42: 14065443
A43: Resultados vta. Activo fijo | B43: 14123431 | C43: 0
A44: Valor Neto de Realización | B44: 18716204022 | C44: 1143174233
A45: Total Otros Ingresos Act.Ganad. | B45: =SUM($B$41:B44) -> 18778764671 | C45: =SUM($C$41:C44) -> 1158978031
A46: Total General Otros Ingresos | B46: =+B38+B45 -> 25937323162 | C46: =C38+C45 -> 14351590896
A49: Nota 28.1 - Otros Ingresos y gastos no operativos
C50: ER
A51: El rubro está compuesto de la siguiente forma:
A53: Cuentas | B53: 2021-09-30 | C53: 2020-09-30
A54: Alquileres ganados | B54: 1401591742 | C54: 1276982368
A55: Resultado Vtas. Bienes de uso | B55: 1183795599 | C55: 0
A56: Otros ingresos de Inversiones Inmob. | B56: 46268001 | C56: 23003640
A57: Ipuesto Inmobiliario | B57: -76696510 | C57: -73626456
A58: Impuesto Inmobiliario no ded. | B58: 0 | C58: -7320056
A59: Patentes y tasas municipales | B59: -83139049 | C59: -123722761
A60: Impuestos, patentes y tasas munic. No ded. | B60: 0 | C60: -7670500
A61: Impuesto a la construcción | B61: -40683000 | C61: 0
A62: Depreciaciones Edificios de Invers. | B62: 0 | C62: -293620277
A63: Mant. y reparación de edificios de Invers. | B63: -25252408 | C63: -868181
A64: Seguros de Edificios de invers. | B64: -7055812 | C64: -4314986
A65: Gastos varios de Invers. | B65: =-400719473-93960000 -> -494679473 | C65: -169344996
A66: Gastos varios de Invers. No ded. | B66: -45031630 | C66: -22357206
A67: Resultado Vtas. Bienes de uso | B67: -52199827 | C67: 0
A68: Servicios de seguridad. | B68: -226192862 | C68: -143981813
A69: Malos créditos de Invers. Inmob. | B69: 0 | C69: 0
A70: Pérdida en vta. Bienes de uso | B70: 0 | C70: 0
A71: Pérdida por Siniestros | B71: 0 | C71: 0
A72: Total | B72: =SUM($B$54:B71) -> 1580724771 | C72: =SUM($C$54:C71) -> 453158776
A75: Cuentas | B75: 2021-09-30 | C75: 2020-09-30
A76: Resultado de ejercicios anteriores | B76: -6797514 | C76: -514464
A77: Total | B77: =+B76 -> -6797514 | C77: =+C76 -> -514464
A78: Total General Otros Resultados no operativos | B78: =+B72+B77 -> 1573927257 | C78: =+C72+C76 -> 452644312

Sheet Nota 29
A1: =Indice!C1 -> NICOLAS GONZALEZ ODDONE S.A.E.C.A | B1: ER
A3: NOTA 29 - INGRESOS Y GASTOS FINANCIEROS NETOS
A4: Miles de guaraníes
A6: El rubro está compuesto de la siguiente forma:
A8: Ingresos Financieros Netos | E8: Gastos Financieros netos
A9: Cuentas | B9: 2021-09-30 | C9: 2020-09-30 | E9: Cuentas | F9: 2021-09-30 | G9: 2020-09-30
A10: Intereses Cajas de ahorro | B10: 295026632 | C10: 199658915 | E10: Intereses y com. Bancarios | F10: -11237648 | G10: -10344457
A11: Diferencias de Cambios GR. Financ. | B11: 41822745272 | C11: 21237549682 | E11: Intereses y com.S/Prest.Bancarios | F11: -2411375340 | G11: -1265515567
A12: Intereses p/ Refinanciaciones Grav. | B12: 3717328513 | C12: 3087974999 | E12: Diferencias de cambios GR.Gtos. Financ. | F12: -39140149262 | G12: -11468976965
A13: Intereses Cobrados | B13: 562393380 | C13: 85312677 | E13: Diferencias de cambios Gtos. Financ. | F13: -528945 | G13: -996030
A14: Intereses p/ Vta. A credito Grav. | B14: 168913718 | C14: 344774073 | E14: Total gastos financieros | F14: =SUM(F10:F13) -> -41563291195 | G14: =SUM(G10:G13) -> -12745833019
A15: Total ingresos financieros | B15: =SUM($B10:B14) -> 46566407515 | C15: =SUM(C10:C14) -> 24955270346
A20: NOTA 29.1 - INGRESOS Y GASTOS DE INVERSIONES FINANCIERAS
C21: ER
A22: El rubro está compuesto de la siguiente forma:
A24: Ingresos de Inversión Financiera | E24: Gastos de Inversión Financiera
A25: Cuentas | B25: 2021-09-30 | C25: 2020-09-30 | E25: Cuentas | F25: 2021-09-30 | G25: 2020-09-30
A26: Intereses por Inversiones financieras EX | B26: 3825073849 | C26: 1863181585 | E26: Intereses y com.p/Invers. Financ. | F26: 0 | G26: -560800
A27: Diferencias de cambio GR. INV.FIN. | B27: 1643108559 | C27: 0 | E27: Dif.de cambios Gr. G.Inv.FIN. | F27: -5787085778 | G27: 0
A28: Ganancias por valuación | B28: 163060047 | C28: 0 | E28: Dif.de cambios EX.INV.FIN. | F28: -7308252600 | G28: 0
A29: Intereses por Inversiones financieras | B29: 259971568 | C29: 0 | E29: Pérdidas por valuacion | F29: -294132037 | G29: -170066289
A30: Diferencias de cambio Inv.fin.Ex | B30: 6549977438 | C30: 0 | E30: Intereses y com.p/Invers. Financ. EX | F30: -2983669 | G30: -18576250
A31: Total Ingresos de Inv. Financ. | B31: =SUM(B26:B30) -> 12441191461 | C31: =SUM(C26:C30) -> 1863181585 | E31: Total Gatos de Inv. Financiera | F31: =SUM(F26:F30) -> -13392454084 | G31: =SUM(G26:G30) -> -189203339

Sheet Nota 30
A1: =Indice!C1 -> NICOLAS GONZALEZ ODDONE S.A.E.C.A | B1: ER
A3: Nota 30 - Resultado de inversiones en asociadas
A4: Miles de guaraníes
A5: NO APLICA
A6: Cuentas | B6: 2021-09-30 | C6: 2020-09-30
A7: Resultado en inversiones permanentes
A8: Resultado en inversiones permanentes
A9: Ajuste VPP
A10: Total | B10: =SUM(B7:B9) -> 0 | C10: =SUM(C7:C9) -> 0
A11: El resultado de las inversiones en las empresas asociadas, son reconocidas al cierre de año, aplicando el VPP.

Sheet Nota 31
A1: =Indice!C1 -> NICOLAS GONZALEZ ODDONE S.A.E.C.A | B1: ER
A3: Nota 31 - Resultado participación minoritaria
A4: Miles de guaraníes
A5: NO APLICA
A7: Resultado participación minoritaria | B7: 2021-09-30 | C7: 2020-09-30
A8: (Detallar cuenta)
A12: Total | B12: 0 | C12: 0

Sheet Nota 32
A1: =Indice!C1 -> NICOLAS GONZALEZ ODDONE S.A.E.C.A | B1: ER
A3: Nota 32 - IMPUESTO A LA RENTA
A4: En miles de guaraníes
A6: Cuentas | B6: 2021-09-30 | C6: 2020-09-30
A7: Impuesto a la Renta Ley 125/91 | B7: 7816774311 | C7: 8264960554
A8: Impuesto a la renta adic. p/ distrib. Utilid. | B8: 0 | C8: 0
A9: Total | B9: =SUM($B7:B8) -> 7816774311 | C9: =SUM($C7:C8) -> 8264960554

Sheet Nota 33
A1: =Indice!C1 -> NICOLAS GONZALEZ ODDONE S.A.E.C.A | B1: ER
A3: Nota 33 - Resultado extraordinario neto de impuesto a la renta
A4: En miles de guaraníes
A5: NO APLICA
B6: 2021-09-30 | C6: 2020-09-30
A7: Conceptos
A8: (Detallar)
A13: Total | B13: =SUM($B7:B12) -> 0 | C13: =SUM($C7:C12) -> 0

Sheet Nota 34
A1: =Indice!C1 -> NICOLAS GONZALEZ ODDONE S.A.E.C.A | B1: ER
A3: Nota 34 - Resultado sobre actividades discontinuadas neto de impuesto a la renta
A4: En miles de guaraníes
A5: NO APLICA
A6: Resultado sobre actividades discontinuadas neto de impuesto a la renta | B6: 2021-09-30 | C6: 2020-09-30
A7: (nueva cuenta a incluir)
A8: Subtotal
A9: - Impuesto a la renta
A10: Total | B10: =SUM($B7:B9) -> 0 | C10: =SUM($C7:C9) -> 0

Sheet Nota 35
A1: =Indice!C1 -> NICOLAS GONZALEZ ODDONE S.A.E.C.A | B1: ER | E1: ER
A3: NOTA 35- UTILIDAD (PÉRDIDA) NETA DEL AÑO Y POR ACCION ORDINARIA
A5: Cuentas | B5: 2021-09-30 | C5: 2020-09-30
A6: Cantidad de Acciones Ordinarias Nominativas Clase A | B6: =3792182 -> 3792182 | C6: 3792182
A7: Cantidad de Acciones Ordinarias Nominativas Clase B | B7: 1355574 | C7: 1355574
A8: Cantidad de Acciones Preferidas Nominativas Clase C | B8: 1201220 | C8: 1201220
A9: Total Acciones | B9: =SUM(B6:B8) -> 6348976 | C9: =SUM(C6:C8) -> 6348976
A10: Utilidad Neta | B10: 74115008613 | C10: 67413551673
A11: Utilidad Neta por Acción | B11: =IFERROR(B10/B9,0) -> 11673.53737 | C11: =IFERROR(C10/C9,0) -> 10618.01961
A13: La Sociedad calcula la utilidad neta por acción sobre la base de la utilidad del año y el total de acciones ordinarias integradas con valor nominal de G. 100.000 cada una.Las acciones ordinarias nominativas clase A tienen derecho a 5 votos, las acciones ordinarias nominativas clase B tienen derecho a 4 votos, en tanto que las acciones preferidas nominativas clase C tienen derecho a Rest. de 1 voto.
A14: Las acciones se encuentran en proceso de desmaterialización.

Sheet Nota 36
A1: =Indice!C1 -> NICOLAS GONZALEZ ODDONE S.A.E.C.A | D1: Indice
A3: NOTA 36 - ACTIVOS GRAVADOS
A4: NO APLICA
A5: Los siguientes bienes de propiedad de la Sociedad han sido hipotecados y prendados en garantía de obligaciones financieras.
A7: =IFERROR("Al "&DAY(Indice!B3)&" de "&VLOOKUP(MONTH(Indice!B3),Indice!S:T,2,0)&" de "&YEAR(Indice!B3-365),"Al dia... de mes… de año 2021…") -> Al dia... de mes… de año 2021…
A8: Tipo de Activo | B8: Datos del activo gravado | C8: Tipo de garantía | D8: Importe (indicar moneda) | E8: A favor de
A14: =IFERROR("Al "&DAY(Indice!B3)&" de "&VLOOKUP(MONTH(Indice!B3),Indice!S:T,2,0)&" de "&YEAR(Indice!B3-1),"Al dia... de mes… de año 2021…") -> Al dia... de mes… de año 2021…
A15: Tipo de Activo | B15: Datos del activo gravado | C15: Tipo de garantía | D15: Importe (indicar moneda) | E15: A favor de

Sheet Nota 37
A1: =Indice!C1 -> NICOLAS GONZALEZ ODDONE S.A.E.C.A | D1: Indice
A3: NOTA 37 - CONTINGENCIAS Y COMPROMISOS
A4: NO APLICA
A5: (Esta nota debería incluir un breve detalle de contratos con terceros, vigente a la fecha de cierre del ejercicio, cuyo incumplimiento o cláusula específica podrían generar obligaciones contingentes para el cliente).
A6: =IFERROR("Los principales contratos suscriptos por la Sociedad, vigentes al "&DAY(Indice!B3)&" de "&VLOOKUP(MONTH(Indice!B3),Indice!S:T,2,0)&" de "&YEAR(Indice!B3-1)&" son:","Los principales contratos suscriptos por la Sociedad, vigentes al … de … 2021 son:") -> Los principales contratos suscriptos por la Sociedad, vigentes al … de … 2021 son:
A7: a) ----------------------------------------------
A8: b) --------------------------------------------
A11: =IFERROR("Al "&DAY(Indice!B3)&" de "&VLOOKUP(MONTH(Indice!B3),Indice!S:T,2,0)&" de "&YEAR(Indice!B3-1)&" no existen situaciones contingentes, ni reclamos que pudieran resultar en la generación de obligaciones para la Sociedad adicionales a las que se presentan en estos estados financieros.","Al … de …………... 2021 no existen situaciones contingentes, ni reclamos que pudieran resultar en la generación de obligaciones para la Sociedad adicionales a las que se presentan en estos estados financieros.") -> Al … de …………... 2021 no existen situaciones contingentes, ni reclamos que pudieran resultar en la generación de obligaciones para la Sociedad adicionales a las que se presentan en estos estados financieros.
A15: Obs.: Esta información debe estar ajustada a lo requerido por la Norma de Información Financiera N° 5 Contingencias y sucesos que ocurren después de la fecha del balance.

Sheet Nota 38
A1: =Indice!C1 -> NICOLAS GONZALEZ ODDONE S.A.E.C.A | D1: Índice
A3: NOTA 38 - IMPUESTO DIFERIDO
A4: En miles de guaraníes
A6: NO APLICA
A7: Al … de …........... 2021 la Sociedad constituyó una provisión para impuesto a la renta de Guaraníes …... (Al … de …...............2021: Guaraníes …....) / (La Sociedad no ha constituido provisión para impuesto a la renta, debido a que a esa fecha la misma generó renta imponible que fue compensada con quebrantos impositivos acumulados a esa fecha).
A8: La Sociedad contabiliza el impuesto a la renta por el método de lo diferido, método del pasivo. El mencionado método establece la determinación de activos o pasivos impositivos diferidos netos basados en las diferencias temporales y temporarias, con cargo a la línea Impuesto a la renta del Estado de resultados.
A10: El siguiente cuadro detalla las diferencias temporales a la tasa del impuesto a los efectos de determinación del impuesto diferido:
B12: 2021-09-30 | C12: 2020-09-30
A13: Activos y pasivos impositivos diferidos:
A14: Caja y Bancos
A15: Inversiones
A16: Previsión para deudores incobrables
A17: Bienes de uso
A18: Activos intangibles
A19: Previsión del pasivo
A20: Deudas comerciales y bancarias
A21: Bienes de cambio
A22: Sub - total
A23: Previsión para impuestos diferidos netos
A24: Total activo/pasivo impositivo diferido neto antes de quebrantos
A25: Quebranto impositivo
A26: Total

Sheet Nota 39
A1: =Indice!C1 -> NICOLAS GONZALEZ ODDONE S.A.E.C.A | C1: Indice
A4: NOTA 39 - HECHOS POSTERIORES

Sheet Nota 40
A1: NICOLAS GONZALEZ ODDONE S.A.E.C.A | C1: Indice
A3: NOTA 40 - SALDOS Y TRANSACCIONES CON PARTES RELACIONADAS
A4: Miles de guaraníes
B6: 2021-09-30 | C6: 2020-09-30
A7: Personas con derecho a voto que controlen al menos 10% del capital
A8: Nicolás V. González R.
A9: Mauro E. González R.
A10: Montserrat González de Caballero
A11: Beatriz González de Bosio
A12: Gisela González de Fúster
A14: Directores, administradores, síndicos, auditores Internos y apoderados
A16: Presidente: Nicolás V. González R. | B16: Presidente
A17: Vicepresidente: Mauro E. González R. | B17: Vicepresidente
A18: Director Titular: Montserrat González de Caballero | B18: Director
A19: Director Titular: Gisela González de Fúster | B19: Director
A20: Director Titular: Juan Jose Bosio | B20: Director
A21: Director Titular: Nino Cricco | B21: Director
A22: Director Titular: Domingo Daher | B22: Director
A23: Síndico Titular: Óscar Benítez Codas | B23: Síndico
A24: Auditora Interna: Ana Cristaldo | B24: Auditoria Interna
A26: Cónyuges y parientes hasta el segundo grado de consaguinidad o afinidad de
A27: las personas de los incisos anteriores, con participación en el capital de la
A28: sociedad
A30: Nicolas E. González Z.
A31: Jose A. González Z.
A32: Esteban J. González K.
A33: Violeta M. González K.
A34: Bruno A. González K.
A35: Juan Jose Bosio G.
A36: Irmina E. Quintana
A37: Raquel Sofia Aguilar Zapag
A38: Mauro Antonio González K.
A41: Activo
A43: Cuentas a Cobrar
A45: Todo Franquicia S.A adeuda a NGO, al 30/09/2021, por compras de mercaderias
A46: activo fijo y alquileres la suma de G. | B46: 35528427517 | C46: 25860505551
A48: Confort para el Hogar adeuda NGO, al 30/09/2021 por compras de mercaderias
A49: y préstamos la suma de G. | B49: 12755850464 | C49: 11107292108
A51: Estirpe Guaraní S.A adeuda a NGO, al 30/09/2021 por compras de merecaderías
A52: la suma de G. | B52: 117913576 | C52: 37314265
A54: Monday S.A Inmobiliaria adeuda a NGO, al 30/09/2021 por compras de mercade-
A55: rías la suma de G. | B55: 0 | C55: 17352834
A57: Agropecuaria cuatro vientos adeuda a NGO al 30/09/2021 por compras de
A58: mercaderías, repuestos y servicio técnico, la suma de G. | B58: 29550000 | C58: 0
A60: M. Montserrat González
A61: * Productos | B61: 0 | C61: 1937977
A63: Mauro Esteban González
A64: * Productos | B64: 33571263 | C64: 131002
A66: Sara Comercial Villamorra S.A
A67: * Productos | B67: 2650611733 | C67: 3164411965
A69: Nicolas V. González
A70: * Productos | B70: 7988031 | C70: 17008835
A72: Gisela González de Fúster
A73: * Productos | B73: 3384449 | C73: 784353
A75: Beatriz Eugenia González de Bosio
A76: * Producto | B76: 5139026 | C76: 4305110
A78: Juan José Bosio González
A79: *Producto | B79: 6451579 | C79: 5642171
A81: Ana Mariela Cristaldo
A82: *Producto | B82: 1474588 | C82: 2854053
A84: Inversiones Mobiliarias Permanentes
A85: NGO SAECA, es socio Fundador de la sociedad TODO FRANQUICIA S.A.,
A86: el capital social de la firma, por asamblea extraordinaria en abril 2011,
A87: aumentó a la suma de cincuenta millones de guaranies. La particpación
A88: de NGO SAECA es (99, 87 %), en dicha sociedad.
A89: La integracón a la fecha asciende a Gs. 27.477.000.000 | B89: =17477000000+10000000000-17383289634 -> 10093710366 | C89: 3914711856
A91: NGO SAECA, es socio fundador de la sociedad CONFORT PARA EL HOGAR
A92: CPH S.A, el capital social de la firma según escritura de constitución de
A93: fecha 4 de marzo de 2014 es de cincuenta millomes de guaraníes. La
A94: participación de NGO SAECA (99, 97%) en dicha sociedad, es cuarenta y
A95: nueve mil quinientos millones de guaraníes G. 49.500.000.000.-
A96: La integración actual asciende a Gs. 45.006.000.000 | B96: =33304000000+11702000000-10385785590 -> 34620214410 | C96: 28298825575
A98: NGO SAECA, es socio fundador de la sociedad BEST CREDIT S.A., el capital
A99: social de la asciende a la suma de Seiscientos mil millones de guaraníes.
A100: La participación de NGO SAECA es (97,00%) en dicha sociedad. La integracion | B100: 291000000 | C100: 0
A101: actual asciende a 291.000.000 de G.
A103: NGO SAECA, es socio fundador de la sociedad BEST CREDIT S.A., el capital
A104: social de la asciende a la suma de Cincuenta mil millones de guaraníes.
A105: La participación de NGO SAECA es (99,51%) en dicha sociedad. La integracion
A106: actual asciende a 2.020.000.000 de G. | B106: 2020000000 | C106: 0
A108: Ingresos
A109: Ingresos por alquiler de uno de sus inmuebles de inversión, a la sociedad
A110: Compañía Internacional de Comercio S.R.L. (CIDECOM SRL) | B110: 0 | C110: 16500000
A112: Ingresos por alquiler de inmuebles de inversion a Todo Franquicia S.A. | B112: 305811199 | C112: 181814547
A114: Ingresos por alquiler de uno de sus inmuebles a la empresa Estirpe Guaraní SA
B115: 0 | C115: 15275627
A117: Ingresos por ventas de productos, servicios e intereses
A118: Nicolás V. González R. | B118: 36127789 | C118: 12595969
A119: Mauro E. González R. | B119: 62639479 | C119: 69425853
A120: Montserrat González de Caballero | B120: 2150402 | C120: 10943872
A121: Gisela González de Bosio | B121: 5949698 | C121: 11317017
A122: Juan José Bosio González | B122: 45837699 | C122: 34459850
A123: Beatriz Eugenia González de Bosio | B123: 16667435 | C123: 28224565
A124: Nicolas E. González Z. | B124: 5903776 | C124: 13338024
A125: Jose A. González Z. | B125: 8348216 | C125: 170876
A126: Esteban J. González K. | B126: 2514486 | C126: 31596829
A127: Violeta M. González K. | B127: 0 | C127: 0
A128: Bruno A. González K. | B128: 7000000 | C128: 0
A129: Mauro Antonio González K. | B129: 0 | C129: 0
A130: Ana Mariela Cristaldo | B130: 76572486 | C130: 10917300
A131: Cidecom SRL | B131: 53133673 | C131: 16500000
A132: Estirpe Guarani SRL | B132: 207158730 | C132: 79700556
A133: Todo Franquicia S.A. | B133: 19576079409 | C133: 9316757802
A134: Monday SA Inmobiliaria | B134: 5674704 | C134: 13948940
A135: Agropecuaria Cuatro Vientos S.A. | B135: 27622476 | C135: 286364
A136: Sara Comercial Villa Morra S.A. | B136: 2224504391 | C136: 1489557560
A138: Ingresos por servicios e intereses
A139: Confort para le Hogar S.A. | B139: =9685253972-7547125000 -> 2138128972 | C139: 1067996203
A141: Egresos
A143: Gastos de publicidad Todo Franquicia | B143: 81818182 | C143: 27530682
A144: Gastos de publicidad Sara comercial Villamorra S.A | B144: 7545455 | C144: 0
A145: Total | B145: =SUM(B7:B144) -> 123062475659 | C145: =SUM(C7:C144) -> 84881936091
